Publisher Label,Publisher URI,"Supplier ID","Supplier","Amount £","Purpose","Transaction Number","Payment Date","Organisational Unit","Cost Centre(T)","Internal Category Number"
"Wolverhampton City Council","http://opendatacommunities.org/id/metropolitan-district-council/wolverhampton","700044","Access To Business","3,000.00","Services - Professional Fees","130272196","27/11/2019","Adult Education","AEB Business Case Growth Skills for Employed & Innovation","R4400"
"Wolverhampton City Council","http://opendatacommunities.org/id/metropolitan-district-council/wolverhampton","700044","Access To Business","17,250.00","TPP - Social Care Support Services","130270695","13/11/2019","Enterprise","Access to Business","R5501"
"Wolverhampton City Council","http://opendatacommunities.org/id/metropolitan-district-council/wolverhampton","700220","THE Acme Facilities Group Ltd","724.00","Equipment - Catering","130268401","01/11/2019","Catering","Education Catering - General Overheads","R4010"
"Wolverhampton City Council","http://opendatacommunities.org/id/metropolitan-district-council/wolverhampton","700264","Acorn Environmental Mgt Group Limited","10,185.58","Grounds Maintenance - Contract","130270273","13/11/2019","Environmental Services","Arbor Scheme","R2075"
"Wolverhampton City Council","http://opendatacommunities.org/id/metropolitan-district-council/wolverhampton","700264","Acorn Environmental Mgt Group Limited","1,184.04","Grounds Maintenance - Contract","130269782","13/11/2019","Environmental Services","Arbor Scheme","R2075"
"Wolverhampton City Council","http://opendatacommunities.org/id/metropolitan-district-council/wolverhampton","700341","Acs Business Supplies Limited","27.99","Stationery","130269501","15/11/2019","Business Change","Business Support Unit","R4308"
"Wolverhampton City Council","http://opendatacommunities.org/id/metropolitan-district-council/wolverhampton","700341","Acs Business Supplies Limited","174.93","Stationery","130261730","22/11/2019","Enterprise","AIM for GOLD","R4308"
"Wolverhampton City Council","http://opendatacommunities.org/id/metropolitan-district-council/wolverhampton","700341","Acs Business Supplies Limited","29.70","Stationery","130269199","13/11/2019","Headstart","Headstart Phase 3","R4308"
"Wolverhampton City Council","http://opendatacommunities.org/id/metropolitan-district-council/wolverhampton","700341","Acs Business Supplies Limited","839.96","Stationery","130270001","20/11/2019","Adult Education","Business Support Services","R4308"
"Wolverhampton City Council","http://opendatacommunities.org/id/metropolitan-district-council/wolverhampton","700341","Acs Business Supplies Limited","91.72","Stationery","130269197","13/11/2019","Business Change","Business Support Unit","R4308"
"Wolverhampton City Council","http://opendatacommunities.org/id/metropolitan-district-council/wolverhampton","700341","Acs Business Supplies Limited","228.98","Stationery","130269784","20/11/2019","Waste and Recycling","Waste Collection and Recycling Service - General","R4308"
"Wolverhampton City Council","http://opendatacommunities.org/id/metropolitan-district-council/wolverhampton","700341","Acs Business Supplies Limited","103.48","Stationery","130269067","13/11/2019","Business Change","Business Support Unit","R4308"
"Wolverhampton City Council","http://opendatacommunities.org/id/metropolitan-district-council/wolverhampton","700341","Acs Business Supplies Limited","14.85","Stationery","130268808","08/11/2019","Business Change","Business Support Unit","R4308"
"Wolverhampton City Council","http://opendatacommunities.org/id/metropolitan-district-council/wolverhampton","700341","Acs Business Supplies Limited","28.84","Stationery","130268808","08/11/2019","Business Change","Business Support Unit","R4308"
"Wolverhampton City Council","http://opendatacommunities.org/id/metropolitan-district-council/wolverhampton","700341","Acs Business Supplies Limited","15.96","Stationery","130267365","06/11/2019","Business Change","Business Support Unit","R4308"
"Wolverhampton City Council","http://opendatacommunities.org/id/metropolitan-district-council/wolverhampton","700341","Acs Business Supplies Limited","87.49","Stationery","130270973","27/11/2019","Visitor Economy","Art Gallery","R4308"
"Wolverhampton City Council","http://opendatacommunities.org/id/metropolitan-district-council/wolverhampton","700341","Acs Business Supplies Limited","109.28","Stationery","130270003","20/11/2019","Strengthening Families","EI Area 1- Eastfield","R4308"
"Wolverhampton City Council","http://opendatacommunities.org/id/metropolitan-district-council/wolverhampton","700341","Acs Business Supplies Limited","337.80","Stationery","130271209","29/11/2019","Customer Services","City Direct","R4308"
"Wolverhampton City Council","http://opendatacommunities.org/id/metropolitan-district-council/wolverhampton","700341","Acs Business Supplies Limited","39.98","Stationery","130269503","15/11/2019","Community Financial Support","Welfare Rights","R4308"
"Wolverhampton City Council","http://opendatacommunities.org/id/metropolitan-district-council/wolverhampton","700341","Acs Business Supplies Limited","2,759.92","Stationery","130270697","27/11/2019","Adult Education","The Maltings","R4308"
"Wolverhampton City Council","http://opendatacommunities.org/id/metropolitan-district-council/wolverhampton","700341","Acs Business Supplies Limited","334.98","Stationery","130270697","27/11/2019","Adult Education","Business Support Services","R4308"
"Wolverhampton City Council","http://opendatacommunities.org/id/metropolitan-district-council/wolverhampton","700341","Acs Business Supplies Limited","33.11","Stationery","130270004","20/11/2019","Business Change","Business Support Unit","R4308"
"Wolverhampton City Council","http://opendatacommunities.org/id/metropolitan-district-council/wolverhampton","700341","Acs Business Supplies Limited","30.89","Stationery","130268404","06/11/2019","Local Economy","Blakenhall Community & Healthy Living Centre","R4308"
"Wolverhampton City Council","http://opendatacommunities.org/id/metropolitan-district-council/wolverhampton","700341","Acs Business Supplies Limited","29.89","Stationery","130268403","06/11/2019","Fleet Services","Fleet Management","R4308"
"Wolverhampton City Council","http://opendatacommunities.org/id/metropolitan-district-council/wolverhampton","700341","Acs Business Supplies Limited","51.98","Stationery","130268807","08/11/2019","Children & Young People In Care","Fostering Team","R4308"
"Wolverhampton City Council","http://opendatacommunities.org/id/metropolitan-district-council/wolverhampton","700341","Acs Business Supplies Limited","46.90","Stationery","130268405","06/11/2019","Business Change","Business Support Unit","R4308"
"Wolverhampton City Council","http://opendatacommunities.org/id/metropolitan-district-council/wolverhampton","700341","Acs Business Supplies Limited","299.80","Stationery","130270696","27/11/2019","Customer Services","City Direct","R4308"
"Wolverhampton City Council","http://opendatacommunities.org/id/metropolitan-district-council/wolverhampton","700341","Acs Business Supplies Limited","528.77","Stationery","130270527","27/11/2019","Business Change","Business Support Unit","R4308"
"Wolverhampton City Council","http://opendatacommunities.org/id/metropolitan-district-council/wolverhampton","700341","Acs Business Supplies Limited","134.15","Stationery","130270699","27/11/2019","Fleet Services","Fleet Management","R4308"
"Wolverhampton City Council","http://opendatacommunities.org/id/metropolitan-district-council/wolverhampton","700341","Acs Business Supplies Limited","21.49","Stationery","130269502","15/11/2019","Community Financial Support","Financial Assessments","R4308"
"Wolverhampton City Council","http://opendatacommunities.org/id/metropolitan-district-council/wolverhampton","700341","Acs Business Supplies Limited","117.55","Stationery","130269195","13/11/2019","Business Change","Business Support Unit","R4308"
"Wolverhampton City Council","http://opendatacommunities.org/id/metropolitan-district-council/wolverhampton","700341","Acs Business Supplies Limited","117.12","Stationery","130268402","06/11/2019","Business Change","Business Support Unit","R4308"
"Wolverhampton City Council","http://opendatacommunities.org/id/metropolitan-district-council/wolverhampton","700341","Acs Business Supplies Limited","18.39","Stationery","130268516","06/11/2019","Business Change","Business Support Unit","R4308"
"Wolverhampton City Council","http://opendatacommunities.org/id/metropolitan-district-council/wolverhampton","700341","Acs Business Supplies Limited","18.60","Stationery","130268516","06/11/2019","Business Change","Business Support Unit","R4308"
"Wolverhampton City Council","http://opendatacommunities.org/id/metropolitan-district-council/wolverhampton","700341","Acs Business Supplies Limited","1.90","Stationery","130268516","06/11/2019","Business Change","Business Support Unit","R4308"
"Wolverhampton City Council","http://opendatacommunities.org/id/metropolitan-district-council/wolverhampton","700341","Acs Business Supplies Limited","163.53","Stationery","130269194","13/11/2019","Business Change","Business Support Unit","R4308"
"Wolverhampton City Council","http://opendatacommunities.org/id/metropolitan-district-council/wolverhampton","700341","Acs Business Supplies Limited","100.48","Stationery","130269196","13/11/2019","Business Change","Business Support Unit","R4308"
"Wolverhampton City Council","http://opendatacommunities.org/id/metropolitan-district-council/wolverhampton","700341","Acs Business Supplies Limited","297.73","Stationery","130269498","15/11/2019","Adult Education","Business Support Services","R4308"
"Wolverhampton City Council","http://opendatacommunities.org/id/metropolitan-district-council/wolverhampton","700341","Acs Business Supplies Limited","127.16","Stationery","130269500","15/11/2019","Youth Offending","Youth Offending Team","R4308"
"Wolverhampton City Council","http://opendatacommunities.org/id/metropolitan-district-council/wolverhampton","700341","Acs Business Supplies Limited","130.35","Stationery","130269200","13/11/2019","Business Change","Business Support Unit","R4308"
"Wolverhampton City Council","http://opendatacommunities.org/id/metropolitan-district-council/wolverhampton","700341","Acs Business Supplies Limited","46.64","Stationery","130269783","20/11/2019","Business Change","Business Support Unit","R4308"
"Wolverhampton City Council","http://opendatacommunities.org/id/metropolitan-district-council/wolverhampton","700341","Acs Business Supplies Limited","426.66","Stationery","130270000","20/11/2019","Adult Education","ICT Services","R4308"
"Wolverhampton City Council","http://opendatacommunities.org/id/metropolitan-district-council/wolverhampton","700341","Acs Business Supplies Limited","139.31","Stationery","130268681","06/11/2019","Local Economy","Global Budgets","R4308"
"Wolverhampton City Council","http://opendatacommunities.org/id/metropolitan-district-council/wolverhampton","700341","Acs Business Supplies Limited","390.89","Stationery","130269198","13/11/2019","Adult Education","The Maltings","R4308"
"Wolverhampton City Council","http://opendatacommunities.org/id/metropolitan-district-council/wolverhampton","700341","Acs Business Supplies Limited","36.70","Stationery","130270002","20/11/2019","Specialist Support","Upper Pendeford Farm Short Breaks Centre","R4308"
"Wolverhampton City Council","http://opendatacommunities.org/id/metropolitan-district-council/wolverhampton","700604","P Kitterick","1,360.00","TPP - Maintenance Contractor - General","190655284","11/11/2019","Transportation","Cycling Schemes - Bikeability","R5720"
"Wolverhampton City Council","http://opendatacommunities.org/id/metropolitan-district-council/wolverhampton","700604","P Kitterick","960.00","TPP - Maintenance Contractor - General","190666354","27/11/2019","Transportation","Cycling Schemes - Bikeability","R5720"
"Wolverhampton City Council","http://opendatacommunities.org/id/metropolitan-district-council/wolverhampton","700604","P Kitterick","960.00","TPP - Maintenance Contractor - General","190666354","27/11/2019","Transportation","Cycling Schemes - Bikeability","R5720"
"Wolverhampton City Council","http://opendatacommunities.org/id/metropolitan-district-council/wolverhampton","700604","P Kitterick","960.00","TPP - Maintenance Contractor - General","190666354","27/11/2019","Transportation","Cycling Schemes - Bikeability","R5720"
"Wolverhampton City Council","http://opendatacommunities.org/id/metropolitan-district-council/wolverhampton","700663","Partisip8/P Sicilia","645.00","TPP - Maintenance Contractor - General","190666353","27/11/2019","Transportation","Cycling Schemes - Bikeability","R5720"
"Wolverhampton City Council","http://opendatacommunities.org/id/metropolitan-district-council/wolverhampton","700715","Adoption Matters Northwest","701.60","TPP - Payments to voluntary groups","130270429","08/11/2019","Children & Young People In Care","Adoption and Residence Team & Allowances","R5200"
"Wolverhampton City Council","http://opendatacommunities.org/id/metropolitan-district-council/wolverhampton","700715","Adoption Matters Northwest","1,754.00","TPP - Payments to voluntary groups","130270427","06/11/2019","Children & Young People In Care","Adoption and Residence Team & Allowances","R5200"
"Wolverhampton City Council","http://opendatacommunities.org/id/metropolitan-district-council/wolverhampton","700715","Adoption Matters Northwest","1,754.00","TPP - Payments to voluntary groups","130270428","08/11/2019","Children & Young People In Care","Adoption and Residence Team & Allowances","R5200"
"Wolverhampton City Council","http://opendatacommunities.org/id/metropolitan-district-council/wolverhampton","700761","R Millard","25.00","Services - Professional Fees","190666362","27/11/2019","Transportation","Advisory Road Markings and Disabled Bays","R4400"
"Wolverhampton City Council","http://opendatacommunities.org/id/metropolitan-district-council/wolverhampton","700762","R Millington","520.00","TPP - Maintenance Contractor - General","190666354","27/11/2019","Transportation","Cycling Schemes - Bikeability","R5720"
"Wolverhampton City Council","http://opendatacommunities.org/id/metropolitan-district-council/wolverhampton","700762","R Millington","520.00","TPP - Maintenance Contractor - General","190666354","27/11/2019","Transportation","Cycling Schemes - Bikeability","R5720"
"Wolverhampton City Council","http://opendatacommunities.org/id/metropolitan-district-council/wolverhampton","700762","R Millington","520.00","TPP - Maintenance Contractor - General","190666354","27/11/2019","Transportation","Cycling Schemes - Bikeability","R5720"
"Wolverhampton City Council","http://opendatacommunities.org/id/metropolitan-district-council/wolverhampton","700762","R Millington","1,390.00","TPP - Maintenance Contractor - General","190655284","11/11/2019","Transportation","Cycling Schemes - Bikeability","R5720"
"Wolverhampton City Council","http://opendatacommunities.org/id/metropolitan-district-council/wolverhampton","700770","Adt Fire And Security PLC","58.00","Fixtures and Fittings - R&M","130270838","27/11/2019","Learning Disability Provider","City Links","R2502"
"Wolverhampton City Council","http://opendatacommunities.org/id/metropolitan-district-council/wolverhampton","700770","Adt Fire And Security PLC","6,683.32","Fixtures and Fittings - R&M","130263748","27/11/2019","Maintenance Programme","Centralised R&M","R2502"
"Wolverhampton City Council","http://opendatacommunities.org/id/metropolitan-district-council/wolverhampton","700979","Af Blakemore/Blakemore Foodservice","214.48","Provisions (Not for resale)","130268517","01/11/2019","Older People Provider Services","Blakenhall Resource Centre","R4101"
"Wolverhampton City Council","http://opendatacommunities.org/id/metropolitan-district-council/wolverhampton","700979","Af Blakemore/Blakemore Foodservice","277.16","Provisions (Resale)","130270524","06/11/2019","Leisure Services","Bert Williams Leisure Centre Caf�","R4102"
"Wolverhampton City Council","http://opendatacommunities.org/id/metropolitan-district-council/wolverhampton","701100","Aggregate Industries UK Limited","168.37","Materials","130269070","13/11/2019","Highways Maintenance","Patching","R4007"
"Wolverhampton City Council","http://opendatacommunities.org/id/metropolitan-district-council/wolverhampton","701100","Aggregate Industries UK Limited","42.17","Materials","130272721","27/11/2019","Highways Maintenance","Patching","R4007"
"Wolverhampton City Council","http://opendatacommunities.org/id/metropolitan-district-council/wolverhampton","701100","Aggregate Industries UK Limited","130.21","Materials","130271832","22/11/2019","Highways Maintenance","Patching","R4007"
"Wolverhampton City Council","http://opendatacommunities.org/id/metropolitan-district-council/wolverhampton","701100","Aggregate Industries UK Limited","309.00","Materials","130269356","13/11/2019","Highways Maintenance","Patching","R4007"
"Wolverhampton City Council","http://opendatacommunities.org/id/metropolitan-district-council/wolverhampton","701100","Aggregate Industries UK Limited","186.02","Materials","130270009","27/11/2019","Highways Maintenance","Patching","R4007"
"Wolverhampton City Council","http://opendatacommunities.org/id/metropolitan-district-council/wolverhampton","701100","Aggregate Industries UK Limited","158.73","Materials","130270528","27/11/2019","Highways Maintenance","Patching","R4007"
"Wolverhampton City Council","http://opendatacommunities.org/id/metropolitan-district-council/wolverhampton","701100","Aggregate Industries UK Limited","158.73","Materials","130270700","29/11/2019","Highways Maintenance","Patching","R4007"
"Wolverhampton City Council","http://opendatacommunities.org/id/metropolitan-district-council/wolverhampton","701100","Aggregate Industries UK Limited","124.01","Materials","130270430","27/11/2019","Highways Maintenance","Patching","R4007"
"Wolverhampton City Council","http://opendatacommunities.org/id/metropolitan-district-council/wolverhampton","701100","Aggregate Industries UK Limited","18,404.39","Construction and Conversion","130271559","15/11/2019","-","GF - Maintenance of unclassified roads","C1100"
"Wolverhampton City Council","http://opendatacommunities.org/id/metropolitan-district-council/wolverhampton","701100","Aggregate Industries UK Limited","128.97","Materials","130268045","06/11/2019","Highways Maintenance","Patching","R4007"
"Wolverhampton City Council","http://opendatacommunities.org/id/metropolitan-district-council/wolverhampton","701100","Aggregate Industries UK Limited","136.41","Materials","130268547","06/11/2019","Highways Maintenance","Patching","R4007"
"Wolverhampton City Council","http://opendatacommunities.org/id/metropolitan-district-council/wolverhampton","701100","Aggregate Industries UK Limited","101.69","Materials","130268930","08/11/2019","Highways Maintenance","Patching","R4007"
"Wolverhampton City Council","http://opendatacommunities.org/id/metropolitan-district-council/wolverhampton","701100","Aggregate Industries UK Limited","95,235.40","Construction and Conversion","130270987","13/11/2019","-","GF - Maintenance of unclassified roads","C1100"
"Wolverhampton City Council","http://opendatacommunities.org/id/metropolitan-district-council/wolverhampton","701100","Aggregate Industries UK Limited","42.17","Materials","130272720","27/11/2019","Highways Maintenance","Patching","R4007"
"Wolverhampton City Council","http://opendatacommunities.org/id/metropolitan-district-council/wolverhampton","701100","Aggregate Industries UK Limited","131.45","Materials","130269069","06/11/2019","Highways Maintenance","Patching","R4007"
"Wolverhampton City Council","http://opendatacommunities.org/id/metropolitan-district-council/wolverhampton","701100","Aggregate Industries UK Limited","126.49","Materials","130268810","06/11/2019","Highways Maintenance","Patching","R4007"
"Wolverhampton City Council","http://opendatacommunities.org/id/metropolitan-district-council/wolverhampton","701100","Aggregate Industries UK Limited","128.97","Materials","130269505","20/11/2019","Highways Maintenance","Patching","R4007"
"Wolverhampton City Council","http://opendatacommunities.org/id/metropolitan-district-council/wolverhampton","701100","Aggregate Industries UK Limited","124.01","Materials","130270839","29/11/2019","Highways Maintenance","Patching","R4007"
"Wolverhampton City Council","http://opendatacommunities.org/id/metropolitan-district-council/wolverhampton","701100","Aggregate Industries UK Limited","42.17","Materials","130268546","01/11/2019","Highways Maintenance","Patching","R4007"
"Wolverhampton City Council","http://opendatacommunities.org/id/metropolitan-district-council/wolverhampton","701100","Aggregate Industries UK Limited","85,938.00","Construction and Conversion","130270988","15/11/2019","-","GF - Maintenance of unclassified roads","C1100"
"Wolverhampton City Council","http://opendatacommunities.org/id/metropolitan-district-council/wolverhampton","701100","Aggregate Industries UK Limited","1,154.33","Construction and Conversion","130270986","15/11/2019","-","GF - Maintenance of unclassified roads","C1100"
"Wolverhampton City Council","http://opendatacommunities.org/id/metropolitan-district-council/wolverhampton","701100","Aggregate Industries UK Limited","260.42","Materials","130268931","13/11/2019","Highways Maintenance","Patching","R4007"
"Wolverhampton City Council","http://opendatacommunities.org/id/metropolitan-district-council/wolverhampton","701100","Aggregate Industries UK Limited","73,701.72","Construction and Conversion","130270840","13/11/2019","-","GF - Maintenance of unclassified roads","C1100"
"Wolverhampton City Council","http://opendatacommunities.org/id/metropolitan-district-council/wolverhampton","701100","Aggregate Industries UK Limited","146.17","Materials","130269504","15/11/2019","Highways Maintenance","Patching","R4007"
"Wolverhampton City Council","http://opendatacommunities.org/id/metropolitan-district-council/wolverhampton","701100","Aggregate Industries UK Limited","233.13","Materials","130268811","13/11/2019","Highways Maintenance","Patching","R4007"
"Wolverhampton City Council","http://opendatacommunities.org/id/metropolitan-district-council/wolverhampton","701100","Aggregate Industries UK Limited","124.01","Materials","130269357","20/11/2019","Highways Maintenance","Patching","R4007"
"Wolverhampton City Council","http://opendatacommunities.org/id/metropolitan-district-council/wolverhampton","701100","Aggregate Industries UK Limited","94.25","Materials","130270008","22/11/2019","Highways Maintenance","Patching","R4007"
"Wolverhampton City Council","http://opendatacommunities.org/id/metropolitan-district-council/wolverhampton","701100","Aggregate Industries UK Limited","142.47","Materials","130270007","20/11/2019","Highways Maintenance","Patching","R4007"
"Wolverhampton City Council","http://opendatacommunities.org/id/metropolitan-district-council/wolverhampton","701210","Air Methods Limited","155.49","Equipment - R & M","190667309","29/11/2019","Fleet Services","Fleet Management","R4003"
"Wolverhampton City Council","http://opendatacommunities.org/id/metropolitan-district-council/wolverhampton","701210","Air Methods Limited","700.29","Equipment - R & M","190667309","29/11/2019","Fleet Services","Fleet Management","R4003"
"Wolverhampton City Council","http://opendatacommunities.org/id/metropolitan-district-council/wolverhampton","701210","Air Methods Limited","101.91","Equipment - R & M","190667309","29/11/2019","Fleet Services","Fleet Management","R4003"
"Wolverhampton City Council","http://opendatacommunities.org/id/metropolitan-district-council/wolverhampton","701342","AKW Medi-Care Limited","394.69","Equipment - Purchase","130269506","06/11/2019","Older People Provider Services","ILS Stores","R4000"
"Wolverhampton City Council","http://opendatacommunities.org/id/metropolitan-district-council/wolverhampton","701417","All Saints Action Network Limited","235.00","Room Hire","130270842","08/11/2019","Children & Young People In Care","Fostering Team","R2201"
"Wolverhampton City Council","http://opendatacommunities.org/id/metropolitan-district-council/wolverhampton","701431","Allglass Systems Limited","-40,393.68","Construction and Conversion","130267528","01/11/2019","-","Capital Maintenance - Window Upgrade","C1100"
"Wolverhampton City Council","http://opendatacommunities.org/id/metropolitan-district-council/wolverhampton","701431","Allglass Systems Limited","40,393.68","Construction and Conversion","130260894","01/11/2019","-","Capital Maintenance - Window Upgrade","C1100"
"Wolverhampton City Council","http://opendatacommunities.org/id/metropolitan-district-council/wolverhampton","701431","Allglass Systems Limited","38,374.00","Construction and Conversion","130267529","01/11/2019","-","Capital Maintenance - Window Upgrade","C1100"
"Wolverhampton City Council","http://opendatacommunities.org/id/metropolitan-district-council/wolverhampton","701431","Allglass Systems Limited","-8,374.00","Construction and Conversion","130269201","01/11/2019","-","Capital Maintenance - Window Upgrade","C1100"
"Wolverhampton City Council","http://opendatacommunities.org/id/metropolitan-district-council/wolverhampton","701437","Allsorts Office Supplies Limited","255.25","Furniture","130273135","29/11/2019","City Planning","Planning","R4004"
"Wolverhampton City Council","http://opendatacommunities.org/id/metropolitan-district-council/wolverhampton","701439","Allstar Business Solutions Limited","1,382.48","Petrol","190660559","15/11/2019","Fleet Services","Fleet Management","R3000"
"Wolverhampton City Council","http://opendatacommunities.org/id/metropolitan-district-council/wolverhampton","701439","Allstar Business Solutions Limited","129.07","Petrol","190660559","15/11/2019","Fleet Services","Fleet Management","R3000"
"Wolverhampton City Council","http://opendatacommunities.org/id/metropolitan-district-council/wolverhampton","701439","Allstar Business Solutions Limited","34.83","Petrol","190660559","15/11/2019","Fleet Services","Fleet Management","R3000"
"Wolverhampton City Council","http://opendatacommunities.org/id/metropolitan-district-council/wolverhampton","701448","Alphatec 2000 Limited","404.80","Equipment - R & M","130272029","27/11/2019","ICTS","Document Centre - General","R4003"
"Wolverhampton City Council","http://opendatacommunities.org/id/metropolitan-district-council/wolverhampton","701448","Alphatec 2000 Limited","2,660.00","Equipment - R & M","130272197","27/11/2019","ICTS","Document Centre - General","R4003"
"Wolverhampton City Council","http://opendatacommunities.org/id/metropolitan-district-council/wolverhampton","701459","Alzheimer�S Society","18,223.75","TPP - Social Care Support Services","130268046","13/11/2019","Strategic Commissioning","Head of Strategic Commissioning","R5501"
"Wolverhampton City Council","http://opendatacommunities.org/id/metropolitan-district-council/wolverhampton","701509","Angel Springs Limited (Waterlogic)","6.68","Provisions (Not for resale)","130270701","27/11/2019","Transportation","Passenger Transport - General","R4101"
"Wolverhampton City Council","http://opendatacommunities.org/id/metropolitan-district-council/wolverhampton","701509","Angel Springs Limited (Waterlogic)","87.00","Provisions (Not for resale)","130271671","15/11/2019","Governance Services","Scrutiny","R4101"
"Wolverhampton City Council","http://opendatacommunities.org/id/metropolitan-district-council/wolverhampton","701509","Angel Springs Limited (Waterlogic)","106.93","Provisions (Not for resale)","130271673","15/11/2019","Governance Services","Scrutiny","R4101"
"Wolverhampton City Council","http://opendatacommunities.org/id/metropolitan-district-council/wolverhampton","701509","Angel Springs Limited (Waterlogic)","92.26","Provisions (Not for resale)","130271677","15/11/2019","Fleet Services","Fleet Management","R4101"
"Wolverhampton City Council","http://opendatacommunities.org/id/metropolitan-district-council/wolverhampton","701509","Angel Springs Limited (Waterlogic)","78.97","Provisions (Not for resale)","130271675","15/11/2019","Governance Services","Scrutiny","R4101"
"Wolverhampton City Council","http://opendatacommunities.org/id/metropolitan-district-council/wolverhampton","701509","Angel Springs Limited (Waterlogic)","22.68","Provisions (Not for resale)","130271676","15/11/2019","Governance Services","Scrutiny","R4101"
"Wolverhampton City Council","http://opendatacommunities.org/id/metropolitan-district-council/wolverhampton","701509","Angel Springs Limited (Waterlogic)","13.65","Provisions (Not for resale)","130271669","15/11/2019","Governance Services","Scrutiny","R4101"
"Wolverhampton City Council","http://opendatacommunities.org/id/metropolitan-district-council/wolverhampton","701509","Angel Springs Limited (Waterlogic)","22.68","Provisions (Not for resale)","130271672","15/11/2019","Governance Services","Scrutiny","R4101"
"Wolverhampton City Council","http://opendatacommunities.org/id/metropolitan-district-council/wolverhampton","701509","Angel Springs Limited (Waterlogic)","22.68","Provisions (Not for resale)","130271674","15/11/2019","Governance Services","Scrutiny","R4101"
"Wolverhampton City Council","http://opendatacommunities.org/id/metropolitan-district-council/wolverhampton","701509","Angel Springs Limited (Waterlogic)","32.40","Provisions (Not for resale)","130271678","27/11/2019","Governance Services","Scrutiny","R4101"
"Wolverhampton City Council","http://opendatacommunities.org/id/metropolitan-district-council/wolverhampton","701512","Anglia Dna Services Limited","130.00","Services - Professional Fees","130270702","08/11/2019","Legal Services","Centralised External Legal Costs","R4400"
"Wolverhampton City Council","http://opendatacommunities.org/id/metropolitan-district-council/wolverhampton","701512","Anglia Dna Services Limited","103.50","Services - Professional Fees","130270704","08/11/2019","Legal Services","Centralised External Legal Costs","R4400"
"Wolverhampton City Council","http://opendatacommunities.org/id/metropolitan-district-council/wolverhampton","701512","Anglia Dna Services Limited","174.67","Services - Professional Fees","130270703","08/11/2019","Legal Services","Centralised External Legal Costs","R4400"
"Wolverhampton City Council","http://opendatacommunities.org/id/metropolitan-district-council/wolverhampton","701519","Animal Enterprises","1,800.00","Services - Professional Fees","130271555","13/11/2019","Visitor Economy","Christmas Festivities","R4400"
"Wolverhampton City Council","http://opendatacommunities.org/id/metropolitan-district-council/wolverhampton","701534","Antalis Limited","1,409.68","Materials","130270529","27/11/2019","ICTS","Document Centre - General","R4007"
"Wolverhampton City Council","http://opendatacommunities.org/id/metropolitan-district-council/wolverhampton","701545","Apcoa Parking (UK) Limited","42,549.87","TPP - Traffic Management","130268548","08/11/2019","Parking Services","Parking Enforcement","R5050"
"Wolverhampton City Council","http://opendatacommunities.org/id/metropolitan-district-council/wolverhampton","701545","Apcoa Parking (UK) Limited","47,981.99","TPP - Traffic Management","130270431","27/11/2019","Parking Services","Parking Enforcement","R5050"
"Wolverhampton City Council","http://opendatacommunities.org/id/metropolitan-district-council/wolverhampton","701547","Apetito Limited","1,311.72","Provisions (Resale)","130268934","06/11/2019","Catering","Meals on Wheels","R4102"
"Wolverhampton City Council","http://opendatacommunities.org/id/metropolitan-district-council/wolverhampton","701547","Apetito Limited","-13.30","Provisions (Resale)","130270706","20/11/2019","Catering","Meals on Wheels","R4102"
"Wolverhampton City Council","http://opendatacommunities.org/id/metropolitan-district-council/wolverhampton","701547","Apetito Limited","1,294.37","Provisions (Resale)","130270432","20/11/2019","Catering","Meals on Wheels","R4102"
"Wolverhampton City Council","http://opendatacommunities.org/id/metropolitan-district-council/wolverhampton","701547","Apetito Limited","1,106.00","Provisions (Resale)","130270530","20/11/2019","Catering","Meals on Wheels","R4102"
"Wolverhampton City Council","http://opendatacommunities.org/id/metropolitan-district-council/wolverhampton","701547","Apetito Limited","1,221.92","Provisions (Resale)","130268549","06/11/2019","Catering","Meals on Wheels","R4102"
"Wolverhampton City Council","http://opendatacommunities.org/id/metropolitan-district-council/wolverhampton","701547","Apetito Limited","888.88","Provisions (Resale)","130264083","13/11/2019","Catering","Meals on Wheels","R4102"
"Wolverhampton City Council","http://opendatacommunities.org/id/metropolitan-district-council/wolverhampton","701547","Apetito Limited","-14.40","Provisions (Resale)","130270705","20/11/2019","Catering","Meals on Wheels","R4102"
"Wolverhampton City Council","http://opendatacommunities.org/id/metropolitan-district-council/wolverhampton","701547","Apetito Limited","681.91","Provisions (Resale)","130269507","20/11/2019","Catering","Meals on Wheels","R4102"
"Wolverhampton City Council","http://opendatacommunities.org/id/metropolitan-district-council/wolverhampton","701547","Apetito Limited","331.19","Provisions (Resale)","130269507","20/11/2019","Catering","Meals on Wheels","R4102"
"Wolverhampton City Council","http://opendatacommunities.org/id/metropolitan-district-council/wolverhampton","701547","Apetito Limited","1,255.79","Provisions (Resale)","130270843","27/11/2019","Catering","Meals on Wheels","R4102"
"Wolverhampton City Council","http://opendatacommunities.org/id/metropolitan-district-council/wolverhampton","701547","Apetito Limited","1,122.93","Provisions (Resale)","130271212","27/11/2019","Catering","Meals on Wheels","R4102"
"Wolverhampton City Council","http://opendatacommunities.org/id/metropolitan-district-council/wolverhampton","701547","Apetito Limited","1,181.59","Provisions (Resale)","130264406","13/11/2019","Catering","Meals on Wheels","R4102"
"Wolverhampton City Council","http://opendatacommunities.org/id/metropolitan-district-council/wolverhampton","701547","Apetito Limited","1,610.47","Provisions (Resale)","130269786","20/11/2019","Catering","Meals on Wheels","R4102"
"Wolverhampton City Council","http://opendatacommunities.org/id/metropolitan-district-council/wolverhampton","701595","Argus Fire Protection Co.Limited","267.00","R&M - Departmental planned (internal)","130266757","22/11/2019","Maintenance Programme","Centralised R&M","R2000"
"Wolverhampton City Council","http://opendatacommunities.org/id/metropolitan-district-council/wolverhampton","701595","Argus Fire Protection Co.Limited","300.00","R&M - Departmental planned (internal)","130266758","22/11/2019","Maintenance Programme","Centralised R&M","R2000"
"Wolverhampton City Council","http://opendatacommunities.org/id/metropolitan-district-council/wolverhampton","701603","Arnold Clark Finance Limited","14.83","Hire of Vehicles","190659313","08/11/2019","Fleet Services","Fleet Management","R3200"
"Wolverhampton City Council","http://opendatacommunities.org/id/metropolitan-district-council/wolverhampton","701603","Arnold Clark Finance Limited","102.70","Hire of Vehicles","190663991","22/11/2019","Fleet Services","Fleet Management","R3200"
"Wolverhampton City Council","http://opendatacommunities.org/id/metropolitan-district-council/wolverhampton","701603","Arnold Clark Finance Limited","55.38","Hire of Vehicles","190663974","22/11/2019","Fleet Services","Fleet Management","R3200"
"Wolverhampton City Council","http://opendatacommunities.org/id/metropolitan-district-council/wolverhampton","701603","Arnold Clark Finance Limited","14.83","Hire of Vehicles","190663976","22/11/2019","Fleet Services","Fleet Management","R3200"
"Wolverhampton City Council","http://opendatacommunities.org/id/metropolitan-district-council/wolverhampton","701603","Arnold Clark Finance Limited","18.46","Hire of Vehicles","190663993","22/11/2019","Fleet Services","Fleet Management","R3200"
"Wolverhampton City Council","http://opendatacommunities.org/id/metropolitan-district-council/wolverhampton","701603","Arnold Clark Finance Limited","38.66","Hire of Vehicles","190663993","22/11/2019","Fleet Services","Fleet Management","R3200"
"Wolverhampton City Council","http://opendatacommunities.org/id/metropolitan-district-council/wolverhampton","701603","Arnold Clark Finance Limited","18.46","Hire of Vehicles","190663995","22/11/2019","Fleet Services","Fleet Management","R3200"
"Wolverhampton City Council","http://opendatacommunities.org/id/metropolitan-district-council/wolverhampton","701603","Arnold Clark Finance Limited","82.80","Hire of Vehicles","190663997","22/11/2019","Fleet Services","Fleet Management","R3200"
"Wolverhampton City Council","http://opendatacommunities.org/id/metropolitan-district-council/wolverhampton","701603","Arnold Clark Finance Limited","82.80","Hire of Vehicles","190663972","22/11/2019","Fleet Services","Fleet Management","R3200"
"Wolverhampton City Council","http://opendatacommunities.org/id/metropolitan-district-council/wolverhampton","701603","Arnold Clark Finance Limited","79.32","Hire of Vehicles","190666461","29/11/2019","Fleet Services","Fleet Management","R3200"
"Wolverhampton City Council","http://opendatacommunities.org/id/metropolitan-district-council/wolverhampton","701603","Arnold Clark Finance Limited","18.46","Hire of Vehicles","190663978","22/11/2019","Fleet Services","Fleet Management","R3200"
"Wolverhampton City Council","http://opendatacommunities.org/id/metropolitan-district-council/wolverhampton","701603","Arnold Clark Finance Limited","82.80","Hire of Vehicles","190663982","22/11/2019","Fleet Services","Fleet Management","R3200"
"Wolverhampton City Council","http://opendatacommunities.org/id/metropolitan-district-council/wolverhampton","701603","Arnold Clark Finance Limited","28.51","Hire of Vehicles","190663989","22/11/2019","Fleet Services","Fleet Management","R3200"
"Wolverhampton City Council","http://opendatacommunities.org/id/metropolitan-district-council/wolverhampton","701603","Arnold Clark Finance Limited","18.46","Hire of Vehicles","190663996","22/11/2019","Fleet Services","Fleet Management","R3200"
"Wolverhampton City Council","http://opendatacommunities.org/id/metropolitan-district-council/wolverhampton","701603","Arnold Clark Finance Limited","47.38","Hire of Vehicles","190659302","08/11/2019","Fleet Services","Fleet Management","R3200"
"Wolverhampton City Council","http://opendatacommunities.org/id/metropolitan-district-council/wolverhampton","701603","Arnold Clark Finance Limited","128.04","Hire of Vehicles","190659309","08/11/2019","Fleet Services","Fleet Management","R3200"
"Wolverhampton City Council","http://opendatacommunities.org/id/metropolitan-district-council/wolverhampton","701603","Arnold Clark Finance Limited","18.46","Hire of Vehicles","190666457","29/11/2019","Fleet Services","Fleet Management","R3200"
"Wolverhampton City Council","http://opendatacommunities.org/id/metropolitan-district-council/wolverhampton","701603","Arnold Clark Finance Limited","42.68","Hire of Vehicles","190666458","29/11/2019","Fleet Services","Fleet Management","R3200"
"Wolverhampton City Council","http://opendatacommunities.org/id/metropolitan-district-council/wolverhampton","701603","Arnold Clark Finance Limited","142.55","Hire of Vehicles","190659305","08/11/2019","Fleet Services","Fleet Management","R3200"
"Wolverhampton City Council","http://opendatacommunities.org/id/metropolitan-district-council/wolverhampton","701603","Arnold Clark Finance Limited","18.46","Hire of Vehicles","190659306","08/11/2019","Fleet Services","Fleet Management","R3200"
"Wolverhampton City Council","http://opendatacommunities.org/id/metropolitan-district-council/wolverhampton","701603","Arnold Clark Finance Limited","14.83","Hire of Vehicles","190663985","22/11/2019","Fleet Services","Fleet Management","R3200"
"Wolverhampton City Council","http://opendatacommunities.org/id/metropolitan-district-council/wolverhampton","701603","Arnold Clark Finance Limited","15.44","Hire of Vehicles","190663986","22/11/2019","Fleet Services","Fleet Management","R3200"
"Wolverhampton City Council","http://opendatacommunities.org/id/metropolitan-district-council/wolverhampton","701603","Arnold Clark Finance Limited","18.46","Hire of Vehicles","190664000","22/11/2019","Fleet Services","Fleet Management","R3200"
"Wolverhampton City Council","http://opendatacommunities.org/id/metropolitan-district-council/wolverhampton","701603","Arnold Clark Finance Limited","18.46","Hire of Vehicles","190663999","22/11/2019","Fleet Services","Fleet Management","R3200"
"Wolverhampton City Council","http://opendatacommunities.org/id/metropolitan-district-council/wolverhampton","701603","Arnold Clark Finance Limited","32.36","Hire of Vehicles","190663999","22/11/2019","Fleet Services","Fleet Management","R3200"
"Wolverhampton City Council","http://opendatacommunities.org/id/metropolitan-district-council/wolverhampton","701603","Arnold Clark Finance Limited","23.69","Hire of Vehicles","190663975","22/11/2019","Fleet Services","Fleet Management","R3200"
"Wolverhampton City Council","http://opendatacommunities.org/id/metropolitan-district-council/wolverhampton","701603","Arnold Clark Finance Limited","16.97","Hire of Vehicles","190663992","22/11/2019","Fleet Services","Fleet Management","R3200"
"Wolverhampton City Council","http://opendatacommunities.org/id/metropolitan-district-council/wolverhampton","701603","Arnold Clark Finance Limited","36.92","Hire of Vehicles","190663994","22/11/2019","Fleet Services","Fleet Management","R3200"
"Wolverhampton City Council","http://opendatacommunities.org/id/metropolitan-district-council/wolverhampton","701603","Arnold Clark Finance Limited","42.68","Hire of Vehicles","190663992","22/11/2019","Fleet Services","Fleet Management","R3200"
"Wolverhampton City Council","http://opendatacommunities.org/id/metropolitan-district-council/wolverhampton","701603","Arnold Clark Finance Limited","18.46","Hire of Vehicles","190659312","08/11/2019","Fleet Services","Fleet Management","R3200"
"Wolverhampton City Council","http://opendatacommunities.org/id/metropolitan-district-council/wolverhampton","701603","Arnold Clark Finance Limited","14.83","Hire of Vehicles","190659314","08/11/2019","Fleet Services","Fleet Management","R3200"
"Wolverhampton City Council","http://opendatacommunities.org/id/metropolitan-district-council/wolverhampton","701603","Arnold Clark Finance Limited","23.69","Hire of Vehicles","190663977","22/11/2019","Fleet Services","Fleet Management","R3200"
"Wolverhampton City Council","http://opendatacommunities.org/id/metropolitan-district-council/wolverhampton","701603","Arnold Clark Finance Limited","18.46","Hire of Vehicles","190666462","29/11/2019","Fleet Services","Fleet Management","R3200"
"Wolverhampton City Council","http://opendatacommunities.org/id/metropolitan-district-council/wolverhampton","701603","Arnold Clark Finance Limited","82.80","Hire of Vehicles","190666460","29/11/2019","Fleet Services","Fleet Management","R3200"
"Wolverhampton City Council","http://opendatacommunities.org/id/metropolitan-district-council/wolverhampton","701603","Arnold Clark Finance Limited","33.43","Hire of Vehicles","190659301","08/11/2019","Fleet Services","Fleet Management","R3200"
"Wolverhampton City Council","http://opendatacommunities.org/id/metropolitan-district-council/wolverhampton","701603","Arnold Clark Finance Limited","18.46","Hire of Vehicles","190659308","08/11/2019","Fleet Services","Fleet Management","R3200"
"Wolverhampton City Council","http://opendatacommunities.org/id/metropolitan-district-council/wolverhampton","701603","Arnold Clark Finance Limited","18.46","Hire of Vehicles","190659310","08/11/2019","Fleet Services","Fleet Management","R3200"
"Wolverhampton City Council","http://opendatacommunities.org/id/metropolitan-district-council/wolverhampton","701603","Arnold Clark Finance Limited","82.80","Hire of Vehicles","190663979","22/11/2019","Fleet Services","Fleet Management","R3200"
"Wolverhampton City Council","http://opendatacommunities.org/id/metropolitan-district-council/wolverhampton","701603","Arnold Clark Finance Limited","42.68","Hire of Vehicles","190663981","22/11/2019","Fleet Services","Fleet Management","R3200"
"Wolverhampton City Council","http://opendatacommunities.org/id/metropolitan-district-council/wolverhampton","701603","Arnold Clark Finance Limited","18.46","Hire of Vehicles","190663988","22/11/2019","Fleet Services","Fleet Management","R3200"
"Wolverhampton City Council","http://opendatacommunities.org/id/metropolitan-district-council/wolverhampton","701603","Arnold Clark Finance Limited","18.46","Hire of Vehicles","190663990","22/11/2019","Fleet Services","Fleet Management","R3200"
"Wolverhampton City Council","http://opendatacommunities.org/id/metropolitan-district-council/wolverhampton","701603","Arnold Clark Finance Limited","18.46","Hire of Vehicles","190663980","22/11/2019","Fleet Services","Fleet Management","R3200"
"Wolverhampton City Council","http://opendatacommunities.org/id/metropolitan-district-council/wolverhampton","701603","Arnold Clark Finance Limited","142.55","Hire of Vehicles","190663973","22/11/2019","Fleet Services","Fleet Management","R3200"
"Wolverhampton City Council","http://opendatacommunities.org/id/metropolitan-district-council/wolverhampton","701603","Arnold Clark Finance Limited","18.46","Hire of Vehicles","190663998","22/11/2019","Fleet Services","Fleet Management","R3200"
"Wolverhampton City Council","http://opendatacommunities.org/id/metropolitan-district-council/wolverhampton","701603","Arnold Clark Finance Limited","34.69","Hire of Vehicles","190663998","22/11/2019","Fleet Services","Fleet Management","R3200"
"Wolverhampton City Council","http://opendatacommunities.org/id/metropolitan-district-council/wolverhampton","701603","Arnold Clark Finance Limited","18.46","Hire of Vehicles","190659307","08/11/2019","Fleet Services","Fleet Management","R3200"
"Wolverhampton City Council","http://opendatacommunities.org/id/metropolitan-district-council/wolverhampton","701603","Arnold Clark Finance Limited","42.68","Hire of Vehicles","190659311","08/11/2019","Fleet Services","Fleet Management","R3200"
"Wolverhampton City Council","http://opendatacommunities.org/id/metropolitan-district-council/wolverhampton","701603","Arnold Clark Finance Limited","22.11","Hire of Vehicles","190659311","08/11/2019","Fleet Services","Fleet Management","R3200"
"Wolverhampton City Council","http://opendatacommunities.org/id/metropolitan-district-council/wolverhampton","701603","Arnold Clark Finance Limited","82.80","Hire of Vehicles","190663987","22/11/2019","Fleet Services","Fleet Management","R3200"
"Wolverhampton City Council","http://opendatacommunities.org/id/metropolitan-district-council/wolverhampton","701603","Arnold Clark Finance Limited","142.55","Hire of Vehicles","190659303","08/11/2019","Fleet Services","Fleet Management","R3200"
"Wolverhampton City Council","http://opendatacommunities.org/id/metropolitan-district-council/wolverhampton","701603","Arnold Clark Finance Limited","82.80","Hire of Vehicles","190659304","08/11/2019","Fleet Services","Fleet Management","R3200"
"Wolverhampton City Council","http://opendatacommunities.org/id/metropolitan-district-council/wolverhampton","701603","Arnold Clark Finance Limited","18.46","Hire of Vehicles","190663983","22/11/2019","Fleet Services","Fleet Management","R3200"
"Wolverhampton City Council","http://opendatacommunities.org/id/metropolitan-district-council/wolverhampton","701603","Arnold Clark Finance Limited","71.07","Hire of Vehicles","190663984","22/11/2019","Fleet Services","Fleet Management","R3200"
"Wolverhampton City Council","http://opendatacommunities.org/id/metropolitan-district-council/wolverhampton","701603","Arnold Clark Finance Limited","36.92","Hire of Vehicles","190664001","22/11/2019","Fleet Services","Fleet Management","R3200"
"Wolverhampton City Council","http://opendatacommunities.org/id/metropolitan-district-council/wolverhampton","701603","Arnold Clark Finance Limited","18.46","Hire of Vehicles","190666459","29/11/2019","Fleet Services","Fleet Management","R3200"
"Wolverhampton City Council","http://opendatacommunities.org/id/metropolitan-district-council/wolverhampton","701613","Arthur Brett (Catering) Limited","73.41","Provisions (Resale)","130269925","06/11/2019","Catering","West Park Tea Room","R4102"
"Wolverhampton City Council","http://opendatacommunities.org/id/metropolitan-district-council/wolverhampton","701613","Arthur Brett (Catering) Limited","19,207.83","Provisions (Resale)","130269926","06/11/2019","Catering","Education Catering - General Overheads","R4102"
"Wolverhampton City Council","http://opendatacommunities.org/id/metropolitan-district-council/wolverhampton","701613","Arthur Brett (Catering) Limited","324.41","Provisions (Resale)","130269922","06/11/2019","Visitor Economy","Art Gallery Tea Room","R4102"
"Wolverhampton City Council","http://opendatacommunities.org/id/metropolitan-district-council/wolverhampton","701613","Arthur Brett (Catering) Limited","62.02","Provisions (Resale)","130266398","08/11/2019","Leisure Services","Bert Williams Leisure Centre Caf�","R4102"
"Wolverhampton City Council","http://opendatacommunities.org/id/metropolitan-district-council/wolverhampton","701613","Arthur Brett (Catering) Limited","19.34","Provisions (Resale)","130272199","27/11/2019","Older People Provider Services","Blakenhall Resource Centre","R4102"
"Wolverhampton City Council","http://opendatacommunities.org/id/metropolitan-district-council/wolverhampton","701613","Arthur Brett (Catering) Limited","1,226.73","Provisions (Resale)","130269927","06/11/2019","Catering","Civic Centre Catering","R4102"
"Wolverhampton City Council","http://opendatacommunities.org/id/metropolitan-district-council/wolverhampton","701613","Arthur Brett (Catering) Limited","77.56","Provisions (Resale)","130269924","06/11/2019","Leisure Services","Bert Williams Leisure Centre Caf�","R4102"
"Wolverhampton City Council","http://opendatacommunities.org/id/metropolitan-district-council/wolverhampton","701613","Arthur Brett (Catering) Limited","14.35","Provisions (Resale)","130270531","13/11/2019","Older People Provider Services","Blakenhall Resource Centre","R4102"
"Wolverhampton City Council","http://opendatacommunities.org/id/metropolitan-district-council/wolverhampton","701613","Arthur Brett (Catering) Limited","17.08","Provisions (Resale)","130271560","20/11/2019","Older People Provider Services","Blakenhall Resource Centre","R4102"
"Wolverhampton City Council","http://opendatacommunities.org/id/metropolitan-district-council/wolverhampton","701613","Arthur Brett (Catering) Limited","125.11","Provisions (Resale)","130269928","06/11/2019","Catering","Meals on Wheels","R4102"
"Wolverhampton City Council","http://opendatacommunities.org/id/metropolitan-district-council/wolverhampton","701613","Arthur Brett (Catering) Limited","27.47","Provisions (Resale)","130269787","06/11/2019","Older People Provider Services","Blakenhall Resource Centre","R4102"
"Wolverhampton City Council","http://opendatacommunities.org/id/metropolitan-district-council/wolverhampton","701613","Arthur Brett (Catering) Limited","833.93","Provisions (Resale)","130269923","06/11/2019","Visitor Economy","Bantock - Tea Rooms","R4102"
"Wolverhampton City Council","http://opendatacommunities.org/id/metropolitan-district-council/wolverhampton","701613","Arthur Brett (Catering) Limited","80.70","Provisions (Resale)","130269921","06/11/2019","Leisure Services","WV Active Catering","R4102"
"Wolverhampton City Council","http://opendatacommunities.org/id/metropolitan-district-council/wolverhampton","701636","Asdan Limited","13.70","Training Expenses","130270010","13/11/2019","Youth Offending","Youth Offending Team","R1650"
"Wolverhampton City Council","http://opendatacommunities.org/id/metropolitan-district-council/wolverhampton","701636","Asdan Limited","2.35","Training Expenses","130270011","20/11/2019","Youth Offending","Youth Offending Team","R1650"
"Wolverhampton City Council","http://opendatacommunities.org/id/metropolitan-district-council/wolverhampton","701643","Ashdown Supplies","376.80","Materials","130270433","06/11/2019","Bereavement Services","Crematorium","R4007"
"Wolverhampton City Council","http://opendatacommunities.org/id/metropolitan-district-council/wolverhampton","701650","Ashtead Plant Hire Company Limited","184.87","Equipment - Hire","130270990","27/11/2019","Visitor Economy","Bonfire","R4001"
"Wolverhampton City Council","http://opendatacommunities.org/id/metropolitan-district-council/wolverhampton","701650","Ashtead Plant Hire Company Limited","836.22","Equipment - Hire","130270012","20/11/2019","Visitor Economy","Diwali","R4001"
"Wolverhampton City Council","http://opendatacommunities.org/id/metropolitan-district-council/wolverhampton","701656","Askews & Holts Library Services Limited","20.74","Books","130270014","06/11/2019","Local Economy","Global Budgets","R4309"
"Wolverhampton City Council","http://opendatacommunities.org/id/metropolitan-district-council/wolverhampton","701656","Askews & Holts Library Services Limited","971.94","Books","130270707","29/11/2019","Local Economy","Global Budgets","R4309"
"Wolverhampton City Council","http://opendatacommunities.org/id/metropolitan-district-council/wolverhampton","701656","Askews & Holts Library Services Limited","20.74","Books","130269512","06/11/2019","Local Economy","Global Budgets","R4309"
"Wolverhampton City Council","http://opendatacommunities.org/id/metropolitan-district-council/wolverhampton","701656","Askews & Holts Library Services Limited","79.87","Books","130269510","13/11/2019","Local Economy","Global Budgets","R4309"
"Wolverhampton City Council","http://opendatacommunities.org/id/metropolitan-district-council/wolverhampton","701656","Askews & Holts Library Services Limited","193.82","Books","130271654","20/11/2019","Local Economy","Global Budgets","R4309"
"Wolverhampton City Council","http://opendatacommunities.org/id/metropolitan-district-council/wolverhampton","701656","Askews & Holts Library Services Limited","37.38","Books","130271656","20/11/2019","Local Economy","Global Budgets","R4309"
"Wolverhampton City Council","http://opendatacommunities.org/id/metropolitan-district-council/wolverhampton","701656","Askews & Holts Library Services Limited","1,556.04","Books","130269929","22/11/2019","Local Economy","Global Budgets","R4309"
"Wolverhampton City Council","http://opendatacommunities.org/id/metropolitan-district-council/wolverhampton","701656","Askews & Holts Library Services Limited","37.38","Books","130269511","06/11/2019","Local Economy","Global Budgets","R4309"
"Wolverhampton City Council","http://opendatacommunities.org/id/metropolitan-district-council/wolverhampton","701656","Askews & Holts Library Services Limited","12.04","Books","130269790","06/11/2019","Local Economy","Global Budgets","R4309"
"Wolverhampton City Council","http://opendatacommunities.org/id/metropolitan-district-council/wolverhampton","701656","Askews & Holts Library Services Limited","12.04","Books","130269793","06/11/2019","Local Economy","Global Budgets","R4309"
"Wolverhampton City Council","http://opendatacommunities.org/id/metropolitan-district-council/wolverhampton","701656","Askews & Holts Library Services Limited","20.74","Books","130270276","06/11/2019","Local Economy","Global Budgets","R4309"
"Wolverhampton City Council","http://opendatacommunities.org/id/metropolitan-district-council/wolverhampton","701656","Askews & Holts Library Services Limited","12.04","Books","130269791","06/11/2019","Local Economy","Global Budgets","R4309"
"Wolverhampton City Council","http://opendatacommunities.org/id/metropolitan-district-council/wolverhampton","701656","Askews & Holts Library Services Limited","12.04","Books","130269792","06/11/2019","Local Economy","Global Budgets","R4309"
"Wolverhampton City Council","http://opendatacommunities.org/id/metropolitan-district-council/wolverhampton","701656","Askews & Holts Library Services Limited","52.91","Books","130269513","06/11/2019","Local Economy","Global Budgets","R4309"
"Wolverhampton City Council","http://opendatacommunities.org/id/metropolitan-district-council/wolverhampton","701656","Askews & Holts Library Services Limited","20.74","Books","130269788","06/11/2019","Local Economy","Global Budgets","R4309"
"Wolverhampton City Council","http://opendatacommunities.org/id/metropolitan-district-council/wolverhampton","701656","Askews & Holts Library Services Limited","1,554.00","Books","130267691","01/11/2019","Local Economy","Global Budgets","R4309"
"Wolverhampton City Council","http://opendatacommunities.org/id/metropolitan-district-council/wolverhampton","701656","Askews & Holts Library Services Limited","37.38","Books","130270013","06/11/2019","Local Economy","Global Budgets","R4309"
"Wolverhampton City Council","http://opendatacommunities.org/id/metropolitan-district-council/wolverhampton","701656","Askews & Holts Library Services Limited","30.45","Books","130269789","06/11/2019","Local Economy","Global Budgets","R4309"
"Wolverhampton City Council","http://opendatacommunities.org/id/metropolitan-district-council/wolverhampton","701656","Askews & Holts Library Services Limited","376.89","Books","130269364","20/11/2019","Local Economy","Global Budgets","R4309"
"Wolverhampton City Council","http://opendatacommunities.org/id/metropolitan-district-council/wolverhampton","701656","Askews & Holts Library Services Limited","89.75","Books","130271655","20/11/2019","Local Economy","Global Budgets","R4309"
"Wolverhampton City Council","http://opendatacommunities.org/id/metropolitan-district-council/wolverhampton","701672","Assn Of Electoral Administrators","25.00","Training Expenses","130271385","13/11/2019","Governance Services","Centralised Training","R1650"
"Wolverhampton City Council","http://opendatacommunities.org/id/metropolitan-district-council/wolverhampton","701672","Assn Of Electoral Administrators","142.50","Subscriptions","130268550","08/11/2019","Governance Services","Electoral Registration","R4701"
"Wolverhampton City Council","http://opendatacommunities.org/id/metropolitan-district-council/wolverhampton","701677","Assoc Of Educational Psychologists","700.00","Staff Advertising Costs","130270532","27/11/2019","Inclusion Support","Inclusion Support","R1700"
"Wolverhampton City Council","http://opendatacommunities.org/id/metropolitan-district-council/wolverhampton","701680","Associated  Radio Taxi�s","800.28","Client Transport","130270534","06/11/2019","Special Educational Needs","Primary - Transport","R3042"
"Wolverhampton City Council","http://opendatacommunities.org/id/metropolitan-district-council/wolverhampton","701680","Associated  Radio Taxi�s","807.12","Client Transport","130270536","06/11/2019","Special Educational Needs","Primary - Transport","R3042"
"Wolverhampton City Council","http://opendatacommunities.org/id/metropolitan-district-council/wolverhampton","701680","Associated  Radio Taxi�s","911.92","Client Transport","130270538","06/11/2019","Special Educational Needs","Special - Transport","R3042"
"Wolverhampton City Council","http://opendatacommunities.org/id/metropolitan-district-council/wolverhampton","701680","Associated  Radio Taxi�s","846.96","Client Transport","130268938","06/11/2019","Special Educational Needs","Special - Transport","R3042"
"Wolverhampton City Council","http://opendatacommunities.org/id/metropolitan-district-council/wolverhampton","701680","Associated  Radio Taxi�s","1,207.26","Client Transport","130270533","06/11/2019","Special Educational Needs","Special - Transport","R3042"
"Wolverhampton City Council","http://opendatacommunities.org/id/metropolitan-district-council/wolverhampton","701680","Associated  Radio Taxi�s","1,092.88","Client Transport","130270535","06/11/2019","Special Educational Needs","Primary - Transport","R3042"
"Wolverhampton City Council","http://opendatacommunities.org/id/metropolitan-district-council/wolverhampton","701680","Associated  Radio Taxi�s","981.36","Client Transport","130270537","06/11/2019","Special Educational Needs","Secondary- Transport","R3042"
"Wolverhampton City Council","http://opendatacommunities.org/id/metropolitan-district-council/wolverhampton","701687","A-Stat Office Technology Limited","23.37","Services - Professional Fees","130272726","27/11/2019","Housing Revenue Account","Springfield Horseshoe Co-op/Burton Rd.","R4400"
"Wolverhampton City Council","http://opendatacommunities.org/id/metropolitan-district-council/wolverhampton","701687","A-Stat Office Technology Limited","23.57","Services - Professional Fees","130272732","27/11/2019","Housing Revenue Account","Springfield Horseshoe Co-op/Burton Rd.","R4400"
"Wolverhampton City Council","http://opendatacommunities.org/id/metropolitan-district-council/wolverhampton","701687","A-Stat Office Technology Limited","19.20","Services - Professional Fees","130272727","27/11/2019","Housing Revenue Account","Springfield Horseshoe Co-op/Burton Rd.","R4400"
"Wolverhampton City Council","http://opendatacommunities.org/id/metropolitan-district-council/wolverhampton","701707","Aurora Graphics & Displays Limited","965.85","Printing","130267535","01/11/2019","ICTS","Document Centre - General","R4300"
"Wolverhampton City Council","http://opendatacommunities.org/id/metropolitan-district-council/wolverhampton","701707","Aurora Graphics & Displays Limited","439.90","Printing","130269207","01/11/2019","ICTS","Document Centre - General","R4300"
"Wolverhampton City Council","http://opendatacommunities.org/id/metropolitan-district-council/wolverhampton","701748","B + G Cleaning Systems Limited","219.00","Hire of Plant","130269794","20/11/2019","Waste and Recycling","Waste Man.Partnership-Environmental Team","R3201"
"Wolverhampton City Council","http://opendatacommunities.org/id/metropolitan-district-council/wolverhampton","701784","Bains Supersave Limited","59.45","Books","130272339","20/11/2019","Local Economy","Ashmore Park Library","R4309"
"Wolverhampton City Council","http://opendatacommunities.org/id/metropolitan-district-council/wolverhampton","701787","Baker Hall Limited","1,977.50","Services - Consultants","130271386","27/11/2019","City Planning","Building Consultancy","R4404"
"Wolverhampton City Council","http://opendatacommunities.org/id/metropolitan-district-council/wolverhampton","701797","Barber Of Sheffield Limited","242.10","Equipment - Purchase","130271213","27/11/2019","Bereavement Services","Coroners","R4000"
"Wolverhampton City Council","http://opendatacommunities.org/id/metropolitan-district-council/wolverhampton","701797","Barber Of Sheffield Limited","49.90","Equipment - Purchase","130271213","27/11/2019","Bereavement Services","Coroners","R4000"
"Wolverhampton City Council","http://opendatacommunities.org/id/metropolitan-district-council/wolverhampton","701797","Barber Of Sheffield Limited","67.00","Equipment - Purchase","130271213","27/11/2019","Bereavement Services","Coroners","R4000"
"Wolverhampton City Council","http://opendatacommunities.org/id/metropolitan-district-council/wolverhampton","701797","Barber Of Sheffield Limited","12.00","Equipment - Purchase","130271213","27/11/2019","Bereavement Services","Coroners","R4000"
"Wolverhampton City Council","http://opendatacommunities.org/id/metropolitan-district-council/wolverhampton","701817","Base 25","2,000.00","Grant Payments","130269208","20/11/2019","Community Safety & Community Cohesion","Early Intervention Youth Fund","R4700"
"Wolverhampton City Council","http://opendatacommunities.org/id/metropolitan-district-council/wolverhampton","701832","Bbp.Security Services & Training Limited","1,089.25","Services - Security","130270015","06/11/2019","Visitor Economy","Diwali","R4405"
"Wolverhampton City Council","http://opendatacommunities.org/id/metropolitan-district-council/wolverhampton","701832","Bbp.Security Services & Training Limited","9,324.00","External Professional Fees","130266953","20/11/2019","-","Black Country Growth Deal � Cultural Programme","C6002"
"Wolverhampton City Council","http://opendatacommunities.org/id/metropolitan-district-council/wolverhampton","701832","Bbp.Security Services & Training Limited","2,205.00","Services - Security","130270847","20/11/2019","Facilities Management","i10 Facilities Management","R4405"
"Wolverhampton City Council","http://opendatacommunities.org/id/metropolitan-district-council/wolverhampton","701832","Bbp.Security Services & Training Limited","7,560.00","External Professional Fees","130270539","20/11/2019","-","Black Country Growth Deal � Cultural Programme","C6002"
"Wolverhampton City Council","http://opendatacommunities.org/id/metropolitan-district-council/wolverhampton","701832","Bbp.Security Services & Training Limited","475.75","Services - Security","130270848","20/11/2019","Maintenance Programme","Asset Management Team","R4405"
"Wolverhampton City Council","http://opendatacommunities.org/id/metropolitan-district-council/wolverhampton","701832","Bbp.Security Services & Training Limited","2,913.75","Services - Security","130270850","20/11/2019","Markets","Wholesale Market Facilities Management","R4405"
"Wolverhampton City Council","http://opendatacommunities.org/id/metropolitan-district-council/wolverhampton","701832","Bbp.Security Services & Training Limited","550.00","Services - Security","130270845","20/11/2019","Maintenance Programme","Asset Management Team","R4405"
"Wolverhampton City Council","http://opendatacommunities.org/id/metropolitan-district-council/wolverhampton","701832","Bbp.Security Services & Training Limited","3,276.00","Services - Security","130270846","20/11/2019","Facilities Management","Parkfields Office Accomodation","R4405"
"Wolverhampton City Council","http://opendatacommunities.org/id/metropolitan-district-council/wolverhampton","701832","Bbp.Security Services & Training Limited","2,543.50","Services - Security","130270849","20/11/2019","Facilities Management","Management of Vacant Properties","R4405"
"Wolverhampton City Council","http://opendatacommunities.org/id/metropolitan-district-council/wolverhampton","701832","Bbp.Security Services & Training Limited","279.00","Services - Security","130270851","20/11/2019","Facilities Management","Caretakers Community Centre","R4405"
"Wolverhampton City Council","http://opendatacommunities.org/id/metropolitan-district-council/wolverhampton","701885","Berrymans Lace Mawer","1,416.00","Insurance - General","130271835","29/11/2019","Audit Services","Legal Liability","R4962"
"Wolverhampton City Council","http://opendatacommunities.org/id/metropolitan-district-council/wolverhampton","701907","Beverages Direct Limited","307.56","Provisions (Resale)","130272914","29/11/2019","Catering","Education Catering - General Overheads","R4102"
"Wolverhampton City Council","http://opendatacommunities.org/id/metropolitan-district-council/wolverhampton","701918","Bickford Truck Hire Limited","1,955.00","Hire of Vehicles","190653682","13/11/2019","Fleet Services","Fleet Management","R3200"
"Wolverhampton City Council","http://opendatacommunities.org/id/metropolitan-district-council/wolverhampton","701918","Bickford Truck Hire Limited","1,870.00","Hire of Vehicles","190653683","13/11/2019","Fleet Services","Fleet Management","R3200"
"Wolverhampton City Council","http://opendatacommunities.org/id/metropolitan-district-council/wolverhampton","701918","Bickford Truck Hire Limited","1,785.00","Hire of Vehicles","190653684","13/11/2019","Fleet Services","Fleet Management","R3200"
"Wolverhampton City Council","http://opendatacommunities.org/id/metropolitan-district-council/wolverhampton","701920","Biffa Waste Services Limited","1,963.55","TPP - Waste Disposal","130270016","20/11/2019","Waste Commerical Services","Commercial Waste Collection","R5003"
"Wolverhampton City Council","http://opendatacommunities.org/id/metropolitan-district-council/wolverhampton","701920","Biffa Waste Services Limited","806.70","TPP - Waste Disposal","130268817","06/11/2019","Waste Commerical Services","Commercial Waste Collection","R5003"
"Wolverhampton City Council","http://opendatacommunities.org/id/metropolitan-district-council/wolverhampton","701920","Biffa Waste Services Limited","1,063.78","TPP - Waste Disposal","130269209","13/11/2019","Waste Commerical Services","Commercial Waste Collection","R5003"
"Wolverhampton City Council","http://opendatacommunities.org/id/metropolitan-district-council/wolverhampton","701944","Birmingham CC - General Fund","16,150.00","TPP - Payments to Local Authorities","130270277","06/11/2019","Special Educational Needs","SEN Education OOC","R5100"
"Wolverhampton City Council","http://opendatacommunities.org/id/metropolitan-district-council/wolverhampton","701944","Birmingham CC - General Fund","10,989.91","Comms - Postage","130269521","20/11/2019","ICTS","Document Centre - General","R4503"
"Wolverhampton City Council","http://opendatacommunities.org/id/metropolitan-district-council/wolverhampton","701944","Birmingham CC - General Fund","7,584.65","TPP - Payments to Local Authorities","130267540","15/11/2019","Special Educational Needs","SEN Education OOC","R5100"
"Wolverhampton City Council","http://opendatacommunities.org/id/metropolitan-district-council/wolverhampton","701944","Birmingham CC - General Fund","21,019.06","Comms - Postage","130269522","20/11/2019","Governance Services","Electoral Registration","R4503"
"Wolverhampton City Council","http://opendatacommunities.org/id/metropolitan-district-council/wolverhampton","701962","Black Country Chamber Of Commerce","1,140.00","Subscriptions","130271561","20/11/2019","Enterprise","Business Engagement","R4701"
"Wolverhampton City Council","http://opendatacommunities.org/id/metropolitan-district-council/wolverhampton","701963","Black Country Consortium Limited","16,507.00","Grant Payments","130268939","27/11/2019","Enterprise","AIM for GOLD","R4700"
"Wolverhampton City Council","http://opendatacommunities.org/id/metropolitan-district-council/wolverhampton","701963","Black Country Consortium Limited","4,900.00","Services - Professional Fees","130272409","22/11/2019","Skills","Employment Programmes","R4400"
"Wolverhampton City Council","http://opendatacommunities.org/id/metropolitan-district-council/wolverhampton","701996","Blue Group Interntl Limited T/A Bluecare","1,369.00","Agency Staff","130270852","29/11/2019","Strengthening Families","CP Area 8 - Children�s Village","R1100"
"Wolverhampton City Council","http://opendatacommunities.org/id/metropolitan-district-council/wolverhampton","701996","Blue Group Interntl Limited T/A Bluecare","1,369.00","Agency Staff","130267833","01/11/2019","Strengthening Families","CP Area 8 - Children�s Village","R1100"
"Wolverhampton City Council","http://opendatacommunities.org/id/metropolitan-district-council/wolverhampton","701996","Blue Group Interntl Limited T/A Bluecare","38.70","Agency Staff","130270708","29/11/2019","Strengthening Families","CP Area 8 - Children�s Village","R1100"
"Wolverhampton City Council","http://opendatacommunities.org/id/metropolitan-district-council/wolverhampton","701996","Blue Group Interntl Limited T/A Bluecare","25.20","Agency Staff","130266530","08/11/2019","Strengthening Families","CP Area 8 - Children�s Village","R1100"
"Wolverhampton City Council","http://opendatacommunities.org/id/metropolitan-district-council/wolverhampton","701999","Blue Mountain Foods Limited","57.00","Provisions (Resale)","130268818","22/11/2019","Catering","Civic Centre Catering","R4102"
"Wolverhampton City Council","http://opendatacommunities.org/id/metropolitan-district-council/wolverhampton","702008","BME Travel","2,772.72","Client Transport","130269369","20/11/2019","Special Educational Needs","Special - Transport","R3042"
"Wolverhampton City Council","http://opendatacommunities.org/id/metropolitan-district-council/wolverhampton","702015","Boc Limited","788.20","Gas","130270278","27/11/2019","Visitor Economy","ALV - Darts & Comedy","R2101"
"Wolverhampton City Council","http://opendatacommunities.org/id/metropolitan-district-council/wolverhampton","702015","Boc Limited","71.74","Rent","130270709","27/11/2019","Visitor Economy","The Little Civic","R2200"
"Wolverhampton City Council","http://opendatacommunities.org/id/metropolitan-district-council/wolverhampton","702034","Boots UK Ltd","2,400.00","Medical Fees","130269210","15/11/2019","Healthy Ageing","Healthy Ageing","R1400"
"Wolverhampton City Council","http://opendatacommunities.org/id/metropolitan-district-council/wolverhampton","702040","Bottomline Technologies Europe Limited","2,524.20","Computing - Purchase of Software","130272384","20/11/2019","Strategic Finance","Agresso System Support","R4531"
"Wolverhampton City Council","http://opendatacommunities.org/id/metropolitan-district-council/wolverhampton","702041","Boulton Travel Limited","2,375.00","Client Transport","130270280","20/11/2019","Special Educational Needs","Special - Transport","R3042"
"Wolverhampton City Council","http://opendatacommunities.org/id/metropolitan-district-council/wolverhampton","702041","Boulton Travel Limited","2,280.00","Client Transport","130270282","20/11/2019","Special Educational Needs","Special - Transport","R3042"
"Wolverhampton City Council","http://opendatacommunities.org/id/metropolitan-district-council/wolverhampton","702041","Boulton Travel Limited","2,880.00","Client Transport","130269933","20/11/2019","Special Educational Needs","Special - Transport","R3042"
"Wolverhampton City Council","http://opendatacommunities.org/id/metropolitan-district-council/wolverhampton","702041","Boulton Travel Limited","2,375.00","Client Transport","130270281","20/11/2019","Special Educational Needs","Special - Transport","R3042"
"Wolverhampton City Council","http://opendatacommunities.org/id/metropolitan-district-council/wolverhampton","702041","Boulton Travel Limited","2,280.00","Client Transport","130269931","20/11/2019","Special Educational Needs","Special - Transport","R3042"
"Wolverhampton City Council","http://opendatacommunities.org/id/metropolitan-district-council/wolverhampton","702041","Boulton Travel Limited","2,375.00","Client Transport","130269930","20/11/2019","Special Educational Needs","Special - Transport","R3042"
"Wolverhampton City Council","http://opendatacommunities.org/id/metropolitan-district-council/wolverhampton","702041","Boulton Travel Limited","2,338.52","Client Transport","130269932","20/11/2019","Special Educational Needs","Special - Transport","R3042"
"Wolverhampton City Council","http://opendatacommunities.org/id/metropolitan-district-council/wolverhampton","702041","Boulton Travel Limited","2,375.00","Client Transport","130270283","20/11/2019","Special Educational Needs","Special - Transport","R3042"
"Wolverhampton City Council","http://opendatacommunities.org/id/metropolitan-district-council/wolverhampton","702046","Bourne Leisure Limited","5,228.33","TPP - Short Breaks","130270019","20/11/2019","Carer Support","Carers Support","R5500"
"Wolverhampton City Council","http://opendatacommunities.org/id/metropolitan-district-council/wolverhampton","702046","Bourne Leisure Limited","-388.75","TPP - Short Breaks","130270020","20/11/2019","Carer Support","Carers Support","R5500"
"Wolverhampton City Council","http://opendatacommunities.org/id/metropolitan-district-council/wolverhampton","702057","Bradley Environmental Consultant Limited","360.00","Training Expenses","130272572","22/11/2019","Audit Services","Health & Safety","R1650"
"Wolverhampton City Council","http://opendatacommunities.org/id/metropolitan-district-council/wolverhampton","702070","Braitch Solicitors","2,332.00","Client Allowances","190659813","13/11/2019","Children & Young People In Care","LAC Transitions Team","R6301"
"Wolverhampton City Council","http://opendatacommunities.org/id/metropolitan-district-council/wolverhampton","702070","Braitch Solicitors","2,332.00","Client Allowances","190659813","13/11/2019","Children & Young People In Care","LAC Transitions Team","R6301"
"Wolverhampton City Council","http://opendatacommunities.org/id/metropolitan-district-council/wolverhampton","702070","Braitch Solicitors","2,332.00","Client Allowances","190659813","13/11/2019","Children & Young People In Care","LAC Transitions Team","R6301"
"Wolverhampton City Council","http://opendatacommunities.org/id/metropolitan-district-council/wolverhampton","702070","Braitch Solicitors","2,332.00","Client Allowances","190659813","13/11/2019","Children & Young People In Care","LAC Transitions Team","R6301"
"Wolverhampton City Council","http://opendatacommunities.org/id/metropolitan-district-council/wolverhampton","702070","Braitch Solicitors","2,332.00","Client Allowances","190659813","13/11/2019","Children & Young People In Care","LAC Transitions Team","R6301"
"Wolverhampton City Council","http://opendatacommunities.org/id/metropolitan-district-council/wolverhampton","702070","Braitch Solicitors","2,332.00","Client Allowances","190659813","13/11/2019","Children & Young People In Care","LAC Transitions Team","R6301"
"Wolverhampton City Council","http://opendatacommunities.org/id/metropolitan-district-council/wolverhampton","702070","Braitch Solicitors","2,332.00","Client Allowances","190659813","13/11/2019","Children & Young People In Care","LAC Transitions Team","R6301"
"Wolverhampton City Council","http://opendatacommunities.org/id/metropolitan-district-council/wolverhampton","702070","Braitch Solicitors","2,332.00","Client Allowances","190659813","13/11/2019","Children & Young People In Care","LAC Transitions Team","R6301"
"Wolverhampton City Council","http://opendatacommunities.org/id/metropolitan-district-council/wolverhampton","702070","Braitch Solicitors","2,332.00","Client Allowances","190659813","13/11/2019","Children & Young People In Care","LAC Transitions Team","R6301"
"Wolverhampton City Council","http://opendatacommunities.org/id/metropolitan-district-council/wolverhampton","702070","Braitch Solicitors","2,332.00","Client Allowances","190659813","13/11/2019","Children & Young People In Care","LAC Transitions Team","R6301"
"Wolverhampton City Council","http://opendatacommunities.org/id/metropolitan-district-council/wolverhampton","702070","Braitch Solicitors","2,332.00","Client Allowances","190659813","13/11/2019","Children & Young People In Care","LAC Transitions Team","R6301"
"Wolverhampton City Council","http://opendatacommunities.org/id/metropolitan-district-council/wolverhampton","702070","Braitch Solicitors","2,332.00","Client Allowances","190659813","13/11/2019","Children & Young People In Care","LAC Transitions Team","R6301"
"Wolverhampton City Council","http://opendatacommunities.org/id/metropolitan-district-council/wolverhampton","702070","Braitch Solicitors","2,332.00","Client Allowances","190659813","13/11/2019","Children & Young People In Care","LAC Transitions Team","R6301"
"Wolverhampton City Council","http://opendatacommunities.org/id/metropolitan-district-council/wolverhampton","702070","Braitch Solicitors","2,332.00","Client Allowances","190659813","13/11/2019","Children & Young People In Care","LAC Transitions Team","R6301"
"Wolverhampton City Council","http://opendatacommunities.org/id/metropolitan-district-council/wolverhampton","702070","Braitch Solicitors","2,332.00","Client Allowances","190659813","13/11/2019","Children & Young People In Care","LAC Transitions Team","R6301"
"Wolverhampton City Council","http://opendatacommunities.org/id/metropolitan-district-council/wolverhampton","702070","Braitch Solicitors","2,332.00","Client Allowances","190659813","13/11/2019","Children & Young People In Care","LAC Transitions Team","R6301"
"Wolverhampton City Council","http://opendatacommunities.org/id/metropolitan-district-council/wolverhampton","702070","Braitch Solicitors","2,332.00","Client Allowances","190659813","13/11/2019","Children & Young People In Care","LAC Transitions Team","R6301"
"Wolverhampton City Council","http://opendatacommunities.org/id/metropolitan-district-council/wolverhampton","702070","Braitch Solicitors","2,332.00","Client Allowances","190659813","13/11/2019","Children & Young People In Care","LAC Transitions Team","R6301"
"Wolverhampton City Council","http://opendatacommunities.org/id/metropolitan-district-council/wolverhampton","702070","Braitch Solicitors","2,332.00","Client Allowances","190659813","13/11/2019","Children & Young People In Care","LAC Transitions Team","R6301"
"Wolverhampton City Council","http://opendatacommunities.org/id/metropolitan-district-council/wolverhampton","702070","Braitch Solicitors","2,332.00","Client Allowances","190659813","13/11/2019","Children & Young People In Care","LAC Transitions Team","R6301"
"Wolverhampton City Council","http://opendatacommunities.org/id/metropolitan-district-council/wolverhampton","702071","Brakes/Brakefresh","60.63","Provisions (Resale)","130269934","20/11/2019","Catering","Civic Centre Catering","R4102"
"Wolverhampton City Council","http://opendatacommunities.org/id/metropolitan-district-council/wolverhampton","702071","Brakes/Brakefresh","71.81","Provisions (Resale)","130271387","20/11/2019","Catering","Civic Centre Catering","R4102"
"Wolverhampton City Council","http://opendatacommunities.org/id/metropolitan-district-council/wolverhampton","702071","Brakes/Brakefresh","53.07","Provisions (Resale)","130271387","20/11/2019","Catering","Civic Centre Catering","R4102"
"Wolverhampton City Council","http://opendatacommunities.org/id/metropolitan-district-council/wolverhampton","702071","Brakes/Brakefresh","152.88","Provisions (Resale)","130268819","01/11/2019","Catering","Civic Centre Catering","R4102"
"Wolverhampton City Council","http://opendatacommunities.org/id/metropolitan-district-council/wolverhampton","702071","Brakes/Brakefresh","64.70","Provisions (Resale)","130266956","08/11/2019","Visitor Economy","Bantock - Tea Rooms","R4102"
"Wolverhampton City Council","http://opendatacommunities.org/id/metropolitan-district-council/wolverhampton","702071","Brakes/Brakefresh","-55.06","Provisions (Resale)","130271566","15/11/2019","Visitor Economy","Bantock - Tea Rooms","R4102"
"Wolverhampton City Council","http://opendatacommunities.org/id/metropolitan-district-council/wolverhampton","702071","Brakes/Brakefresh","330.42","Provisions (Resale)","130265684","06/11/2019","Catering","Civic Centre Catering","R4102"
"Wolverhampton City Council","http://opendatacommunities.org/id/metropolitan-district-council/wolverhampton","702071","Brakes/Brakefresh","91.20","Provisions (Resale)","130271568","15/11/2019","Visitor Economy","Art Gallery Tea Room","R4102"
"Wolverhampton City Council","http://opendatacommunities.org/id/metropolitan-district-council/wolverhampton","702071","Brakes/Brakefresh","112.54","Provisions (Resale)","130271567","15/11/2019","Visitor Economy","Art Gallery Tea Room","R4102"
"Wolverhampton City Council","http://opendatacommunities.org/id/metropolitan-district-council/wolverhampton","702071","Brakes/Brakefresh","-17.04","Provisions (Resale)","130271563","15/11/2019","Visitor Economy","Art Gallery Tea Room","R4102"
"Wolverhampton City Council","http://opendatacommunities.org/id/metropolitan-district-council/wolverhampton","702071","Brakes/Brakefresh","-8.52","Provisions (Resale)","130271564","15/11/2019","Visitor Economy","Art Gallery Tea Room","R4102"
"Wolverhampton City Council","http://opendatacommunities.org/id/metropolitan-district-council/wolverhampton","702071","Brakes/Brakefresh","290.98","Provisions (Resale)","130270710","27/11/2019","Catering","Civic Centre Catering","R4102"
"Wolverhampton City Council","http://opendatacommunities.org/id/metropolitan-district-council/wolverhampton","702071","Brakes/Brakefresh","81.59","Provisions (Resale)","130268941","08/11/2019","Visitor Economy","Art Gallery Tea Room","R4102"
"Wolverhampton City Council","http://opendatacommunities.org/id/metropolitan-district-council/wolverhampton","702071","Brakes/Brakefresh","185.73","Provisions (Resale)","130271388","29/11/2019","Catering","Civic Centre Catering","R4102"
"Wolverhampton City Council","http://opendatacommunities.org/id/metropolitan-district-council/wolverhampton","702071","Brakes/Brakefresh","450.70","Provisions (Resale)","130270435","22/11/2019","Catering","Civic Centre Catering","R4102"
"Wolverhampton City Council","http://opendatacommunities.org/id/metropolitan-district-council/wolverhampton","702071","Brakes/Brakefresh","0.04","Provisions (Resale)","130272205","20/11/2019","Catering","Civic Centre Catering","R4102"
"Wolverhampton City Council","http://opendatacommunities.org/id/metropolitan-district-council/wolverhampton","702071","Brakes/Brakefresh","-26.08","Provisions (Resale)","130272205","20/11/2019","Catering","Civic Centre Catering","R4102"
"Wolverhampton City Council","http://opendatacommunities.org/id/metropolitan-district-council/wolverhampton","702071","Brakes/Brakefresh","-21.49","Provisions (Resale)","130271562","15/11/2019","Visitor Economy","Bantock - Tea Rooms","R4102"
"Wolverhampton City Council","http://opendatacommunities.org/id/metropolitan-district-council/wolverhampton","702071","Brakes/Brakefresh","-60.98","Provisions (Resale)","130271565","15/11/2019","Catering","Civic Centre Catering","R4102"
"Wolverhampton City Council","http://opendatacommunities.org/id/metropolitan-district-council/wolverhampton","702071","Brakes/Brakefresh","364.38","Provisions (Resale)","130268940","08/11/2019","Catering","Civic Centre Catering","R4102"
"Wolverhampton City Council","http://opendatacommunities.org/id/metropolitan-district-council/wolverhampton","702093","Briggs Equiptment UK Limited","413.33","Hire of Vehicles","130269371","13/11/2019","Markets","Wholesale Market Facilities Management","R3200"
"Wolverhampton City Council","http://opendatacommunities.org/id/metropolitan-district-council/wolverhampton","702093","Briggs Equiptment UK Limited","413.33","Hire of Vehicles","130266662","01/11/2019","Markets","Wholesale Market Facilities Management","R3200"
"Wolverhampton City Council","http://opendatacommunities.org/id/metropolitan-district-council/wolverhampton","702126","BT (Phone Bills)","139.20","Comms - Telephone Call charges","190658396","06/11/2019","Parking Services","Car Parks Operational Staff","R4505"
"Wolverhampton City Council","http://opendatacommunities.org/id/metropolitan-district-council/wolverhampton","702126","BT (Phone Bills)","1,362.00","Equipment - Hire","130270853","08/11/2019","Operation & Maintenance of Existing Network","UTC Wolverhampton","R4001"
"Wolverhampton City Council","http://opendatacommunities.org/id/metropolitan-district-council/wolverhampton","702126","BT (Phone Bills)","3,162.20","Equipment - Hire","130271837","20/11/2019","Operation & Maintenance of Existing Network","UTC - Sandwell MBC","R4001"
"Wolverhampton City Council","http://opendatacommunities.org/id/metropolitan-district-council/wolverhampton","702131","British Telecommunications-Openreach","2,031.26","TPP - Maintenance on Other Roads","130269795","20/11/2019","Transportation","Bridges & Subways","R5710"
"Wolverhampton City Council","http://opendatacommunities.org/id/metropolitan-district-council/wolverhampton","702157","Browne Jacobson Llp","3,573.00","Insurance - General","130271389","22/11/2019","Audit Services","Legal Liability","R4962"
"Wolverhampton City Council","http://opendatacommunities.org/id/metropolitan-district-council/wolverhampton","702157","Browne Jacobson Llp","1,908.00","Insurance - General","190666933","29/11/2019","Audit Services","Legal Liability","R4962"
"Wolverhampton City Council","http://opendatacommunities.org/id/metropolitan-district-council/wolverhampton","702157","Browne Jacobson Llp","285.00","Insurance - General","190666935","29/11/2019","Audit Services","Legal Liability","R4962"
"Wolverhampton City Council","http://opendatacommunities.org/id/metropolitan-district-council/wolverhampton","702157","Browne Jacobson Llp","350.00","Services - Professional Fees","130270021","22/11/2019","Human Resources","Equal Pay","R4400"
"Wolverhampton City Council","http://opendatacommunities.org/id/metropolitan-district-council/wolverhampton","702157","Browne Jacobson Llp","1,187.50","Insurance - General","190666932","29/11/2019","Audit Services","Legal Liability","R4962"
"Wolverhampton City Council","http://opendatacommunities.org/id/metropolitan-district-council/wolverhampton","702157","Browne Jacobson Llp","554.00","Insurance - General","190666934","29/11/2019","Audit Services","Legal Liability","R4962"
"Wolverhampton City Council","http://opendatacommunities.org/id/metropolitan-district-council/wolverhampton","702157","Browne Jacobson Llp","937.00","Insurance - General","190660340","13/11/2019","Audit Services","Legal Liability","R4962"
"Wolverhampton City Council","http://opendatacommunities.org/id/metropolitan-district-council/wolverhampton","702164","Bruton Knowles","4,500.00","Services - Professional Fees","130270025","08/11/2019","City Planning","Planning","R4400"
"Wolverhampton City Council","http://opendatacommunities.org/id/metropolitan-district-council/wolverhampton","702164","Bruton Knowles","800.00","Services - Professional Fees","130270994","20/11/2019","Estates and Valuations","Estates and Valuations Team","R4400"
"Wolverhampton City Council","http://opendatacommunities.org/id/metropolitan-district-council/wolverhampton","702164","Bruton Knowles","6,480.00","Services - Professional Fees","130269372","13/11/2019","Estates and Valuations","Estates and Valuations Team","R4400"
"Wolverhampton City Council","http://opendatacommunities.org/id/metropolitan-district-council/wolverhampton","702164","Bruton Knowles","1,000.00","Services - Professional Fees","130270026","06/11/2019","Estates and Valuations","Estates and Valuations Team","R4400"
"Wolverhampton City Council","http://opendatacommunities.org/id/metropolitan-district-council/wolverhampton","702164","Bruton Knowles","1,350.00","External Professional Fees","130270540","27/11/2019","-","Housing General Fund General Schemes - Empty Properties Strategy","C6002"
"Wolverhampton City Council","http://opendatacommunities.org/id/metropolitan-district-council/wolverhampton","702164","Bruton Knowles","1,450.00","Services - Fees and Charges","130271390","13/11/2019","Housing Revenue Account","HRA General","R4401"
"Wolverhampton City Council","http://opendatacommunities.org/id/metropolitan-district-council/wolverhampton","702164","Bruton Knowles","650.00","Construction and Conversion","130271216","29/11/2019","-","Housing General Fund General Schemes - Empty Properties Strategy","C1100"
"Wolverhampton City Council","http://opendatacommunities.org/id/metropolitan-district-council/wolverhampton","702164","Bruton Knowles","1,000.00","Services - Professional Fees","130270991","08/11/2019","Estates and Valuations","Estates and Valuations Team","R4400"
"Wolverhampton City Council","http://opendatacommunities.org/id/metropolitan-district-council/wolverhampton","702164","Bruton Knowles","7,500.00","External Professional Fees","130270028","08/11/2019","-","Housing General Fund General Schemes - Empty Properties Strategy","C6002"
"Wolverhampton City Council","http://opendatacommunities.org/id/metropolitan-district-council/wolverhampton","702164","Bruton Knowles","2,000.00","Services - Professional Fees","130271391","15/11/2019","Estates and Valuations","Estates and Valuations Team","R4400"
"Wolverhampton City Council","http://opendatacommunities.org/id/metropolitan-district-council/wolverhampton","702164","Bruton Knowles","4,860.00","Services - Professional Fees","130270436","15/11/2019","Estates and Valuations","Estates and Valuations Team","R4400"
"Wolverhampton City Council","http://opendatacommunities.org/id/metropolitan-district-council/wolverhampton","702164","Bruton Knowles","1,650.00","Services - Professional Fees","130270027","01/11/2019","Housing","Wholly Owned Company - Operations","R4400"
"Wolverhampton City Council","http://opendatacommunities.org/id/metropolitan-district-council/wolverhampton","702164","Bruton Knowles","1,500.00","Services - Fees and Charges","130270024","01/11/2019","City Planning","Planning","R4401"
"Wolverhampton City Council","http://opendatacommunities.org/id/metropolitan-district-council/wolverhampton","702171","BT (Business)","1,071.00","Plant, Equipment, Machinery & Computer Hardware","130270029","27/11/2019","-","ICT Desktop Refresh","C3000"
"Wolverhampton City Council","http://opendatacommunities.org/id/metropolitan-district-council/wolverhampton","702172","BT Global","18,536.43","Equipment - Hire","130271682","15/11/2019","Operation & Maintenance of Existing Network","UTC Dudley","R4001"
"Wolverhampton City Council","http://opendatacommunities.org/id/metropolitan-district-council/wolverhampton","702172","BT Global","1,837.50","Computing - Internet","190656386","01/11/2019","ICTS","Strategic ICTS (ICT Service Budget)","R4537"
"Wolverhampton City Council","http://opendatacommunities.org/id/metropolitan-district-council/wolverhampton","702181","United Living","1,281,757.00","Construction and Conversion","130271396","20/11/2019","-","Decent Homes - Stock Improvements","C1100"
"Wolverhampton City Council","http://opendatacommunities.org/id/metropolitan-district-council/wolverhampton","702181","United Living","78,484.00","Construction and Conversion","130271395","20/11/2019","-","Decent Homes - Stock Improvements","C1100"
"Wolverhampton City Council","http://opendatacommunities.org/id/metropolitan-district-council/wolverhampton","702181","United Living","35,069.81","Construction and Conversion","130266773","20/11/2019","-","Decent Homes - Stock Improvements","C1100"
"Wolverhampton City Council","http://opendatacommunities.org/id/metropolitan-district-council/wolverhampton","702181","United Living","101,170.00","R&M - Departmental planned (external)","130271399","20/11/2019","Housing Revenue Account","Amounts to be Settled with Wolverhampton Homes","R2001"
"Wolverhampton City Council","http://opendatacommunities.org/id/metropolitan-district-council/wolverhampton","702181","United Living","9,999.68","Construction and Conversion","130269938","08/11/2019","-","Structural works","C1100"
"Wolverhampton City Council","http://opendatacommunities.org/id/metropolitan-district-council/wolverhampton","702181","United Living","10,729.86","Construction and Conversion","130269940","06/11/2019","-","Refurbishment of Voids","C1100"
"Wolverhampton City Council","http://opendatacommunities.org/id/metropolitan-district-council/wolverhampton","702181","United Living","13,004.20","Construction and Conversion","130269936","06/11/2019","-","Decent Homes - Stock Condition","C1100"
"Wolverhampton City Council","http://opendatacommunities.org/id/metropolitan-district-council/wolverhampton","702181","United Living","100,000.00","Construction and Conversion","130271394","15/11/2019","-","Refurbishment of Voids","C1100"
"Wolverhampton City Council","http://opendatacommunities.org/id/metropolitan-district-council/wolverhampton","702181","United Living","72,332.00","Construction and Conversion","130271397","20/11/2019","-","Structural works","C1100"
"Wolverhampton City Council","http://opendatacommunities.org/id/metropolitan-district-council/wolverhampton","702181","United Living","347,101.00","Construction and Conversion","130271398","20/11/2019","-","Refurbishment of Voids","C1100"
"Wolverhampton City Council","http://opendatacommunities.org/id/metropolitan-district-council/wolverhampton","702181","United Living","10,911.13","Construction and Conversion","130269937","06/11/2019","-","Decent Homes - Stock Improvements","C1100"
"Wolverhampton City Council","http://opendatacommunities.org/id/metropolitan-district-council/wolverhampton","702181","United Living","2,581.19","Construction and Conversion","130269939","06/11/2019","-","Decent Homes - Stock Improvements","C1100"
"Wolverhampton City Council","http://opendatacommunities.org/id/metropolitan-district-council/wolverhampton","702181","United Living","6,979.63","R&M - Departmental planned (external)","130269935","06/11/2019","Housing Revenue Account","Amounts to be Settled with Wolverhampton Homes","R2001"
"Wolverhampton City Council","http://opendatacommunities.org/id/metropolitan-district-council/wolverhampton","702201","Bury M.B.C","5,616.00","Client Transport - SEN","130269212","06/11/2019","Special Educational Needs","Special - Transport","R3043"
"Wolverhampton City Council","http://opendatacommunities.org/id/metropolitan-district-council/wolverhampton","702231","Bytes Software Services Limited","578.46","Computing - Purchase of Software","130271218","20/11/2019","ICTS","Strategic ICTS (ICT Service Budget)","R4531"
"Wolverhampton City Council","http://opendatacommunities.org/id/metropolitan-district-council/wolverhampton","702231","Bytes Software Services Limited","1,165.02","Computing - Licences","130249838","27/11/2019","ICTS","Strategic ICTS (ICT Service Budget)","R4535"
"Wolverhampton City Council","http://opendatacommunities.org/id/metropolitan-district-council/wolverhampton","702231","Bytes Software Services Limited","63,435.25","Computing - Purchase of Software","130271219","27/11/2019","ICTS","Strategic ICTS (ICT Service Budget)","R4531"
"Wolverhampton City Council","http://opendatacommunities.org/id/metropolitan-district-council/wolverhampton","702253","C P Davidson & Sons Limited","3,795.00","Hire of Vehicles","190663938","22/11/2019","Fleet Services","Fleet Management","R3200"
"Wolverhampton City Council","http://opendatacommunities.org/id/metropolitan-district-council/wolverhampton","702253","C P Davidson & Sons Limited","3,795.00","Hire of Vehicles","190663940","22/11/2019","Fleet Services","Fleet Management","R3200"
"Wolverhampton City Council","http://opendatacommunities.org/id/metropolitan-district-council/wolverhampton","702253","C P Davidson & Sons Limited","590.30","Hire of Vehicles","190666454","29/11/2019","Fleet Services","Fleet Management","R3200"
"Wolverhampton City Council","http://opendatacommunities.org/id/metropolitan-district-council/wolverhampton","702253","C P Davidson & Sons Limited","3,795.00","Hire of Vehicles","190663939","22/11/2019","Fleet Services","Fleet Management","R3200"
"Wolverhampton City Council","http://opendatacommunities.org/id/metropolitan-district-council/wolverhampton","702253","C P Davidson & Sons Limited","14.70","Hire of Vehicles","190666456","29/11/2019","Fleet Services","Fleet Management","R3200"
"Wolverhampton City Council","http://opendatacommunities.org/id/metropolitan-district-council/wolverhampton","702253","C P Davidson & Sons Limited","437.13","Hire of Vehicles","190666455","29/11/2019","Fleet Services","Fleet Management","R3200"
"Wolverhampton City Council","http://opendatacommunities.org/id/metropolitan-district-council/wolverhampton","702302","Canon (UK) Limited","896.82","Stationery","130269526","01/11/2019","City Planning","Planning","R4308"
"Wolverhampton City Council","http://opendatacommunities.org/id/metropolitan-district-council/wolverhampton","702302","Canon (UK) Limited","1,148.12","Printing","130269527","01/11/2019","City Planning","Planning","R4300"
"Wolverhampton City Council","http://opendatacommunities.org/id/metropolitan-district-council/wolverhampton","702306","Capita Business Serv Limited","639.70","Services - Bank Charges","130270030","08/11/2019","Central Corporate Budgets","Corporate Management (Bank Charges)","R4403"
"Wolverhampton City Council","http://opendatacommunities.org/id/metropolitan-district-council/wolverhampton","702310","Capita Resourcing Limited (Crvs)","329.55","Computing - Licences","130270541","27/11/2019","The Hub","Criminal Convictions Checking","R4535"
"Wolverhampton City Council","http://opendatacommunities.org/id/metropolitan-district-council/wolverhampton","702319","Capitol Mobility Services Limited","45.00","Equipment - Purchase","130272034","20/11/2019","Markets","Shopmobility","R4000"
"Wolverhampton City Council","http://opendatacommunities.org/id/metropolitan-district-council/wolverhampton","702334","HAS Technology Limited","6,652.37","Computing - Maint Agreements","130270995","20/11/2019","Strategic Commissioning","Head of Strategic Commissioning","R4534"
"Wolverhampton City Council","http://opendatacommunities.org/id/metropolitan-district-council/wolverhampton","702372","C�Art Art Transport Limited","-148.00","Services - Professional Fees","130269941","22/11/2019","Communications","Communications & Marketing - General","R4400"
"Wolverhampton City Council","http://opendatacommunities.org/id/metropolitan-district-council/wolverhampton","702372","C�Art Art Transport Limited","3,841.00","Services - Professional Fees","130269942","22/11/2019","Visitor Economy","Keith Piper - ACE NPO WAG","R4400"
"Wolverhampton City Council","http://opendatacommunities.org/id/metropolitan-district-council/wolverhampton","702380","Carver (Wolverhampton) Limited","108.38","Services - Professional Fees","130269345","06/11/2019","Housing Revenue Account","Springfield Horseshoe Co-op/Burton Rd.","R4400"
"Wolverhampton City Council","http://opendatacommunities.org/id/metropolitan-district-council/wolverhampton","702380","Carver (Wolverhampton) Limited","22.30","Services - Professional Fees","130271825","15/11/2019","Housing Revenue Account","Springfield Horseshoe Co-op/Burton Rd.","R4400"
"Wolverhampton City Council","http://opendatacommunities.org/id/metropolitan-district-council/wolverhampton","702380","Carver (Wolverhampton) Limited","499.58","Materials","130271840","20/11/2019","Street Lighting","Street Lighting Maintenance","R4007"
"Wolverhampton City Council","http://opendatacommunities.org/id/metropolitan-district-council/wolverhampton","702380","Carver (Wolverhampton) Limited","18.58","Services - Professional Fees","130269347","06/11/2019","Housing Revenue Account","Springfield Horseshoe Co-op/Burton Rd.","R4400"
"Wolverhampton City Council","http://opendatacommunities.org/id/metropolitan-district-council/wolverhampton","702380","Carver (Wolverhampton) Limited","51.66","Services - Professional Fees","130269346","06/11/2019","Housing Revenue Account","Springfield Horseshoe Co-op/Burton Rd.","R4400"
"Wolverhampton City Council","http://opendatacommunities.org/id/metropolitan-district-council/wolverhampton","702380","Carver (Wolverhampton) Limited","14.09","Equipment - Purchase","190659265","08/11/2019","Fleet Services","Fleet Management","R4000"
"Wolverhampton City Council","http://opendatacommunities.org/id/metropolitan-district-council/wolverhampton","702382","Carwood Motor Units Limited","175.00","Services - Professional Fees","190656774","01/11/2019","Fleet Services","Fleet Management","R4400"
"Wolverhampton City Council","http://opendatacommunities.org/id/metropolitan-district-council/wolverhampton","702391","Castlecroft Medical Practice","1,950.00","TPP - Public Health Contracts","190660318","13/11/2019","Healthy Life Expectancy","Healthy Lifestyles","R5060"
"Wolverhampton City Council","http://opendatacommunities.org/id/metropolitan-district-council/wolverhampton","702391","Castlecroft Medical Practice","77.00","TPP - Public Health Contracts","190660317","13/11/2019","Healthy Life Expectancy","Healthy Lifestyles","R5060"
"Wolverhampton City Council","http://opendatacommunities.org/id/metropolitan-district-council/wolverhampton","702396","Cater Walsh Reporting Ltd","1,255.50","Services - Professional Fees","130271400","13/11/2019","Legal Services","Centralised External Legal Costs","R4400"
"Wolverhampton City Council","http://opendatacommunities.org/id/metropolitan-district-council/wolverhampton","702396","Cater Walsh Reporting Ltd","94.87","Services - Professional Fees","130270542","27/11/2019","Legal Services","Centralised External Legal Costs","R4400"
"Wolverhampton City Council","http://opendatacommunities.org/id/metropolitan-district-council/wolverhampton","702396","Cater Walsh Reporting Ltd","108.75","Services - Professional Fees","130269943","13/11/2019","Legal Services","Centralised External Legal Costs","R4400"
"Wolverhampton City Council","http://opendatacommunities.org/id/metropolitan-district-council/wolverhampton","702450","GO Carz","160.32","Client Transport","130265296","22/11/2019","Children & Young People In Care","Childrens with Disabilities Team","R3042"
"Wolverhampton City Council","http://opendatacommunities.org/id/metropolitan-district-council/wolverhampton","702450","GO Carz","843.12","Client Transport","130271401","27/11/2019","Children & Young People In Care","Childrens with Disabilities Team","R3042"
"Wolverhampton City Council","http://opendatacommunities.org/id/metropolitan-district-council/wolverhampton","702450","GO Carz","481.00","Client Transport","130270284","06/11/2019","Special Educational Needs","Special - Transport","R3042"
"Wolverhampton City Council","http://opendatacommunities.org/id/metropolitan-district-council/wolverhampton","702450","GO Carz","1,140.00","Client Transport","130271841","27/11/2019","Special Educational Needs","Special - Transport","R3042"
"Wolverhampton City Council","http://opendatacommunities.org/id/metropolitan-district-council/wolverhampton","702450","GO Carz","16.20","Client Transport","130272575","27/11/2019","Emergency Duty Team","Emergency Duty Team","R3042"
"Wolverhampton City Council","http://opendatacommunities.org/id/metropolitan-district-council/wolverhampton","702450","GO Carz","1,290.00","Client Transport","130270996","08/11/2019","Special Educational Needs","Primary - Transport","R3042"
"Wolverhampton City Council","http://opendatacommunities.org/id/metropolitan-district-council/wolverhampton","702450","GO Carz","725.00","Client Transport","130272739","27/11/2019","Special Educational Needs","Primary - Transport","R3042"
"Wolverhampton City Council","http://opendatacommunities.org/id/metropolitan-district-council/wolverhampton","702450","GO Carz","244.80","Client Transport","130272035","20/11/2019","Special Educational Needs","Special - Transport","R3042"
"Wolverhampton City Council","http://opendatacommunities.org/id/metropolitan-district-council/wolverhampton","702450","GO Carz","1,140.00","Client Transport","130272036","20/11/2019","Special Educational Needs","Special - Transport","R3042"
"Wolverhampton City Council","http://opendatacommunities.org/id/metropolitan-district-council/wolverhampton","702452","Central Workwear","1,363.00","Laundry Expenses","130270285","27/11/2019","Catering","Education Catering - General Overheads","R4202"
"Wolverhampton City Council","http://opendatacommunities.org/id/metropolitan-district-council/wolverhampton","702452","Central Workwear","94.15","Services - Professional Fees","130270286","27/11/2019","Governance Services","Mayoral Expenses","R4400"
"Wolverhampton City Council","http://opendatacommunities.org/id/metropolitan-district-council/wolverhampton","702471","Chamberlain Music","132.00","Equipment - Purchase","130273149","29/11/2019","School Organisation","Music Support Team","R4000"
"Wolverhampton City Council","http://opendatacommunities.org/id/metropolitan-district-council/wolverhampton","702471","Chamberlain Music","120.00","Equipment - Purchase","130273149","29/11/2019","School Organisation","Music Support Team","R4000"
"Wolverhampton City Council","http://opendatacommunities.org/id/metropolitan-district-council/wolverhampton","702472","Chambers Electrical (Wolverhampton) Ltd","60.00","Materials","130268685","13/11/2019","Bereavement Services","Cemeteries","R4007"
"Wolverhampton City Council","http://opendatacommunities.org/id/metropolitan-district-council/wolverhampton","702530","Chipside Limited","160.00","Computing - Purchase of Hardware","130271406","27/11/2019","Parking Services","Parking Enforcement","R4530"
"Wolverhampton City Council","http://opendatacommunities.org/id/metropolitan-district-council/wolverhampton","702530","Chipside Limited","320.00","Computing - Purchase of Hardware","130270438","06/11/2019","Parking Services","Parking Enforcement","R4530"
"Wolverhampton City Council","http://opendatacommunities.org/id/metropolitan-district-council/wolverhampton","702530","Chipside Limited","609.20","Computing - Purchase of Hardware","130271405","27/11/2019","Parking Services","Parking Enforcement","R4530"
"Wolverhampton City Council","http://opendatacommunities.org/id/metropolitan-district-council/wolverhampton","702530","Chipside Limited","361.50","Computing - Purchase of Hardware","130270437","08/11/2019","Parking Services","Parking Enforcement","R4530"
"Wolverhampton City Council","http://opendatacommunities.org/id/metropolitan-district-council/wolverhampton","702543","Chubb Fire & Security Limited","993.70","Fixtures and Fittings - R&M","130272334","20/11/2019","Facilities Management","Management of Vacant Properties","R2502"
"Wolverhampton City Council","http://opendatacommunities.org/id/metropolitan-district-council/wolverhampton","702555","Cilip","500.00","Books","130273043","29/11/2019","Local Economy","Global Budgets","R4309"
"Wolverhampton City Council","http://opendatacommunities.org/id/metropolitan-district-council/wolverhampton","702571","City Cars","210.40","Client Transport","130271220","13/11/2019","Special Educational Needs","Special - Transport","R3042"
"Wolverhampton City Council","http://opendatacommunities.org/id/metropolitan-district-council/wolverhampton","702571","City Cars","968.62","Client Transport","130272039","27/11/2019","Special Educational Needs","Special - Transport","R3042"
"Wolverhampton City Council","http://opendatacommunities.org/id/metropolitan-district-council/wolverhampton","702571","City Cars","1,318.60","Client Transport","130272041","27/11/2019","Special Educational Needs","Special - Transport","R3042"
"Wolverhampton City Council","http://opendatacommunities.org/id/metropolitan-district-council/wolverhampton","702571","City Cars","1,309.10","Client Transport","130272043","27/11/2019","Special Educational Needs","Special - Transport","R3042"
"Wolverhampton City Council","http://opendatacommunities.org/id/metropolitan-district-council/wolverhampton","702571","City Cars","1,478.70","Client Transport","130270675","06/11/2019","Special Educational Needs","Special - Transport","R3042"
"Wolverhampton City Council","http://opendatacommunities.org/id/metropolitan-district-council/wolverhampton","702571","City Cars","1,298.00","Client Transport","130270680","06/11/2019","Special Educational Needs","Special - Transport","R3042"
"Wolverhampton City Council","http://opendatacommunities.org/id/metropolitan-district-council/wolverhampton","702571","City Cars","1,318.60","Client Transport","130272209","27/11/2019","Special Educational Needs","Special - Transport","R3042"
"Wolverhampton City Council","http://opendatacommunities.org/id/metropolitan-district-council/wolverhampton","702571","City Cars","731.57","Client Transport","130270425","06/11/2019","Special Educational Needs","Special - Transport","R3042"
"Wolverhampton City Council","http://opendatacommunities.org/id/metropolitan-district-council/wolverhampton","702571","City Cars","1,249.20","Client Transport","130270676","06/11/2019","Special Educational Needs","Special - Transport","R3042"
"Wolverhampton City Council","http://opendatacommunities.org/id/metropolitan-district-council/wolverhampton","702571","City Cars","1,309.10","Client Transport","130270679","06/11/2019","Special Educational Needs","Special - Transport","R3042"
"Wolverhampton City Council","http://opendatacommunities.org/id/metropolitan-district-council/wolverhampton","702571","City Cars","1,038.40","Client Transport","130272044","27/11/2019","Special Educational Needs","Special - Transport","R3042"
"Wolverhampton City Council","http://opendatacommunities.org/id/metropolitan-district-council/wolverhampton","702571","City Cars","1,499.10","Client Transport","130272042","27/11/2019","Special Educational Needs","Secondary- Transport","R3042"
"Wolverhampton City Council","http://opendatacommunities.org/id/metropolitan-district-council/wolverhampton","702571","City Cars","1,110.40","Client Transport","130270677","06/11/2019","Special Educational Needs","Special - Transport","R3042"
"Wolverhampton City Council","http://opendatacommunities.org/id/metropolitan-district-council/wolverhampton","702571","City Cars","1,656.90","Client Transport","130270678","06/11/2019","Special Educational Needs","Secondary- Transport","R3042"
"Wolverhampton City Council","http://opendatacommunities.org/id/metropolitan-district-council/wolverhampton","702571","City Cars","1,689.10","Client Transport","130272040","27/11/2019","Special Educational Needs","Special - Transport","R3042"
"Wolverhampton City Council","http://opendatacommunities.org/id/metropolitan-district-council/wolverhampton","702579","City Of Wolverhampton College","1,575.00","Training Expenses","130269528","15/11/2019","Audit Services","Health & Safety","R1650"
"Wolverhampton City Council","http://opendatacommunities.org/id/metropolitan-district-council/wolverhampton","702579","City Of Wolverhampton College","450.00","Training Expenses","130273303","29/11/2019","Audit Services","Health & Safety","R1650"
"Wolverhampton City Council","http://opendatacommunities.org/id/metropolitan-district-council/wolverhampton","702583","Civica UK Limited","150.00","Training Expenses","130271842","20/11/2019","Governance Services","Workforce Development","R1650"
"Wolverhampton City Council","http://opendatacommunities.org/id/metropolitan-district-council/wolverhampton","702643","Cobalt Telephone Technologies Limited","2,186.90","Computing - Maint Agreements","130265111","01/11/2019","Parking Services","Car Parks Operational Staff","R4534"
"Wolverhampton City Council","http://opendatacommunities.org/id/metropolitan-district-council/wolverhampton","702643","Cobalt Telephone Technologies Limited","3,012.20","Computing - Maint Agreements","130267546","29/11/2019","Parking Services","Car Parks Operational Staff","R4534"
"Wolverhampton City Council","http://opendatacommunities.org/id/metropolitan-district-council/wolverhampton","702643","Cobalt Telephone Technologies Limited","3,735.90","Computing - Maint Agreements","130270858","20/11/2019","Parking Services","Car Parks Operational Staff","R4534"
"Wolverhampton City Council","http://opendatacommunities.org/id/metropolitan-district-council/wolverhampton","702643","Cobalt Telephone Technologies Limited","111.00","Signage and Labels","130270543","08/11/2019","Parking Services","City Learning Quarter Car Park","R4009"
"Wolverhampton City Council","http://opendatacommunities.org/id/metropolitan-district-council/wolverhampton","702658","Coin-A-Drink Limited","54.83","Equipment - Hire","130272411","27/11/2019","Bereavement Services","Crematorium","R4001"
"Wolverhampton City Council","http://opendatacommunities.org/id/metropolitan-district-council/wolverhampton","702683","Commercial Body Fittings Limited","10.15","Equipment - Purchase","190659263","08/11/2019","Fleet Services","Fleet Management","R4000"
"Wolverhampton City Council","http://opendatacommunities.org/id/metropolitan-district-council/wolverhampton","702685","Digraph Transport Supplies Ltd","96.16","Equipment - Purchase","190667296","29/11/2019","Fleet Services","Fleet Management","R4000"
"Wolverhampton City Council","http://opendatacommunities.org/id/metropolitan-district-council/wolverhampton","702685","Digraph Transport Supplies Ltd","25.92","Equipment - Purchase","190667295","29/11/2019","Fleet Services","Fleet Management","R4000"
"Wolverhampton City Council","http://opendatacommunities.org/id/metropolitan-district-council/wolverhampton","702685","Digraph Transport Supplies Ltd","72.12","Equipment - Purchase","190667295","29/11/2019","Fleet Services","Fleet Management","R4000"
"Wolverhampton City Council","http://opendatacommunities.org/id/metropolitan-district-council/wolverhampton","702685","Digraph Transport Supplies Ltd","11.28","Equipment - Purchase","190663366","20/11/2019","Fleet Services","Fleet Management","R4000"
"Wolverhampton City Council","http://opendatacommunities.org/id/metropolitan-district-council/wolverhampton","702685","Digraph Transport Supplies Ltd","19.16","Equipment - Purchase","190663366","20/11/2019","Fleet Services","Fleet Management","R4000"
"Wolverhampton City Council","http://opendatacommunities.org/id/metropolitan-district-council/wolverhampton","702685","Digraph Transport Supplies Ltd","12.04","Equipment - Purchase","190663366","20/11/2019","Fleet Services","Fleet Management","R4000"
"Wolverhampton City Council","http://opendatacommunities.org/id/metropolitan-district-council/wolverhampton","702685","Digraph Transport Supplies Ltd","88.74","Equipment - Purchase","190663366","20/11/2019","Fleet Services","Fleet Management","R4000"
"Wolverhampton City Council","http://opendatacommunities.org/id/metropolitan-district-council/wolverhampton","702685","Digraph Transport Supplies Ltd","17.10","Equipment - Purchase","190663365","20/11/2019","Fleet Services","Fleet Management","R4000"
"Wolverhampton City Council","http://opendatacommunities.org/id/metropolitan-district-council/wolverhampton","702685","Digraph Transport Supplies Ltd","82.08","Equipment - Purchase","190656810","01/11/2019","Fleet Services","Fleet Management","R4000"
"Wolverhampton City Council","http://opendatacommunities.org/id/metropolitan-district-council/wolverhampton","702685","Digraph Transport Supplies Ltd","22.68","Equipment - Purchase","190656810","01/11/2019","Fleet Services","Fleet Management","R4000"
"Wolverhampton City Council","http://opendatacommunities.org/id/metropolitan-district-council/wolverhampton","702685","Digraph Transport Supplies Ltd","23.08","Equipment - Purchase","190656810","01/11/2019","Fleet Services","Fleet Management","R4000"
"Wolverhampton City Council","http://opendatacommunities.org/id/metropolitan-district-council/wolverhampton","702685","Digraph Transport Supplies Ltd","19.48","Equipment - Purchase","190656810","01/11/2019","Fleet Services","Fleet Management","R4000"
"Wolverhampton City Council","http://opendatacommunities.org/id/metropolitan-district-council/wolverhampton","702685","Digraph Transport Supplies Ltd","68.68","Equipment - Purchase","190656810","01/11/2019","Fleet Services","Fleet Management","R4000"
"Wolverhampton City Council","http://opendatacommunities.org/id/metropolitan-district-council/wolverhampton","702685","Digraph Transport Supplies Ltd","57.18","Equipment - Purchase","190663364","20/11/2019","Fleet Services","Fleet Management","R4000"
"Wolverhampton City Council","http://opendatacommunities.org/id/metropolitan-district-council/wolverhampton","702685","Digraph Transport Supplies Ltd","14.37","Equipment - Purchase","190667297","29/11/2019","Fleet Services","Fleet Management","R4000"
"Wolverhampton City Council","http://opendatacommunities.org/id/metropolitan-district-council/wolverhampton","702685","Digraph Transport Supplies Ltd","9.03","Equipment - Purchase","190667297","29/11/2019","Fleet Services","Fleet Management","R4000"
"Wolverhampton City Council","http://opendatacommunities.org/id/metropolitan-district-council/wolverhampton","702685","Digraph Transport Supplies Ltd","5.64","Equipment - Purchase","190667297","29/11/2019","Fleet Services","Fleet Management","R4000"
"Wolverhampton City Council","http://opendatacommunities.org/id/metropolitan-district-council/wolverhampton","702685","Digraph Transport Supplies Ltd","29.58","Equipment - Purchase","190667297","29/11/2019","Fleet Services","Fleet Management","R4000"
"Wolverhampton City Council","http://opendatacommunities.org/id/metropolitan-district-council/wolverhampton","702685","Digraph Transport Supplies Ltd","269.36","Equipment - Purchase","190658323","06/11/2019","Fleet Services","Fleet Management","R4000"
"Wolverhampton City Council","http://opendatacommunities.org/id/metropolitan-district-council/wolverhampton","702685","Digraph Transport Supplies Ltd","168.49","Equipment - Purchase","190658323","06/11/2019","Fleet Services","Fleet Management","R4000"
"Wolverhampton City Council","http://opendatacommunities.org/id/metropolitan-district-council/wolverhampton","702685","Digraph Transport Supplies Ltd","206.43","Equipment - Purchase","190658323","06/11/2019","Fleet Services","Fleet Management","R4000"
"Wolverhampton City Council","http://opendatacommunities.org/id/metropolitan-district-council/wolverhampton","702685","Digraph Transport Supplies Ltd","168.49","Equipment - Purchase","190660552","15/11/2019","Fleet Services","Fleet Management","R4000"
"Wolverhampton City Council","http://opendatacommunities.org/id/metropolitan-district-council/wolverhampton","702685","Digraph Transport Supplies Ltd","206.43","Equipment - Purchase","190660552","15/11/2019","Fleet Services","Fleet Management","R4000"
"Wolverhampton City Council","http://opendatacommunities.org/id/metropolitan-district-council/wolverhampton","702685","Digraph Transport Supplies Ltd","269.36","Equipment - Purchase","190660552","15/11/2019","Fleet Services","Fleet Management","R4000"
"Wolverhampton City Council","http://opendatacommunities.org/id/metropolitan-district-council/wolverhampton","702685","Digraph Transport Supplies Ltd","40.08","Equipment - Purchase","190663363","20/11/2019","Fleet Services","Fleet Management","R4000"
"Wolverhampton City Council","http://opendatacommunities.org/id/metropolitan-district-council/wolverhampton","702685","Digraph Transport Supplies Ltd","111.72","Equipment - Purchase","190660553","15/11/2019","Fleet Services","Fleet Management","R4000"
"Wolverhampton City Council","http://opendatacommunities.org/id/metropolitan-district-council/wolverhampton","702697","Community Transport","2,606.42","Client Transport","130271687","15/11/2019","Special Educational Needs","Special - Transport","R3042"
"Wolverhampton City Council","http://opendatacommunities.org/id/metropolitan-district-council/wolverhampton","702697","Community Transport","2,568.04","Client Transport","130271685","15/11/2019","Special Educational Needs","Special - Transport","R3042"
"Wolverhampton City Council","http://opendatacommunities.org/id/metropolitan-district-council/wolverhampton","702697","Community Transport","2,460.06","Client Transport","130271684","15/11/2019","Special Educational Needs","Special - Transport","R3042"
"Wolverhampton City Council","http://opendatacommunities.org/id/metropolitan-district-council/wolverhampton","702697","Community Transport","2,451.06","Client Transport","130271686","15/11/2019","Special Educational Needs","Special - Transport","R3042"
"Wolverhampton City Council","http://opendatacommunities.org/id/metropolitan-district-council/wolverhampton","702697","Community Transport","2,872.42","Client Transport","130271688","15/11/2019","Special Educational Needs","Special - Transport","R3042"
"Wolverhampton City Council","http://opendatacommunities.org/id/metropolitan-district-council/wolverhampton","702723","Concept Elevators (UK) Ltd","36.00","R&M - Departmental planned (external)","130269214","01/11/2019","Maintenance Programme","Centralised R&M","R2001"
"Wolverhampton City Council","http://opendatacommunities.org/id/metropolitan-district-council/wolverhampton","702723","Concept Elevators (UK) Ltd","288.00","R&M - Departmental planned (external)","130270035","06/11/2019","Maintenance Programme","Centralised R&M","R2001"
"Wolverhampton City Council","http://opendatacommunities.org/id/metropolitan-district-council/wolverhampton","702723","Concept Elevators (UK) Ltd","54.00","R&M - Departmental planned (external)","130270033","08/11/2019","Maintenance Programme","Centralised R&M","R2001"
"Wolverhampton City Council","http://opendatacommunities.org/id/metropolitan-district-council/wolverhampton","702723","Concept Elevators (UK) Ltd","681.30","R&M - Departmental planned (external)","130271843","20/11/2019","Facilities Management","Hickman Avenue Depot","R2001"
"Wolverhampton City Council","http://opendatacommunities.org/id/metropolitan-district-council/wolverhampton","702723","Concept Elevators (UK) Ltd","255.06","R&M - Departmental planned (external)","130271845","20/11/2019","Maintenance Programme","Centralised R&M","R2001"
"Wolverhampton City Council","http://opendatacommunities.org/id/metropolitan-district-council/wolverhampton","702723","Concept Elevators (UK) Ltd","216.00","R&M - Departmental planned (external)","130272577","27/11/2019","Maintenance Programme","Centralised R&M","R2001"
"Wolverhampton City Council","http://opendatacommunities.org/id/metropolitan-district-council/wolverhampton","702723","Concept Elevators (UK) Ltd","99.00","R&M - Departmental planned (external)","130271844","22/11/2019","Maintenance Programme","Centralised R&M","R2001"
"Wolverhampton City Council","http://opendatacommunities.org/id/metropolitan-district-council/wolverhampton","702723","Concept Elevators (UK) Ltd","72.00","R&M - Departmental planned (external)","130271001","15/11/2019","Maintenance Programme","Centralised R&M","R2001"
"Wolverhampton City Council","http://opendatacommunities.org/id/metropolitan-district-council/wolverhampton","702723","Concept Elevators (UK) Ltd","144.00","R&M - Departmental planned (external)","130266113","08/11/2019","Maintenance Programme","Centralised R&M","R2001"
"Wolverhampton City Council","http://opendatacommunities.org/id/metropolitan-district-council/wolverhampton","702723","Concept Elevators (UK) Ltd","72.00","R&M - Departmental planned (external)","130266114","08/11/2019","Maintenance Programme","Centralised R&M","R2001"
"Wolverhampton City Council","http://opendatacommunities.org/id/metropolitan-district-council/wolverhampton","702723","Concept Elevators (UK) Ltd","782.00","R&M - Departmental planned (external)","130269807","01/11/2019","Maintenance Programme","Centralised R&M","R2001"
"Wolverhampton City Council","http://opendatacommunities.org/id/metropolitan-district-council/wolverhampton","702723","Concept Elevators (UK) Ltd","36.00","R&M - Departmental planned (external)","130270031","08/11/2019","Maintenance Programme","Centralised R&M","R2001"
"Wolverhampton City Council","http://opendatacommunities.org/id/metropolitan-district-council/wolverhampton","702723","Concept Elevators (UK) Ltd","72.00","R&M - Departmental planned (external)","130269213","15/11/2019","Maintenance Programme","Centralised R&M","R2001"
"Wolverhampton City Council","http://opendatacommunities.org/id/metropolitan-district-council/wolverhampton","702723","Concept Elevators (UK) Ltd","569.30","R&M - Departmental planned (external)","130267380","08/11/2019","Maintenance Programme","Centralised R&M","R2001"
"Wolverhampton City Council","http://opendatacommunities.org/id/metropolitan-district-council/wolverhampton","702723","Concept Elevators (UK) Ltd","1,613.00","R&M - Departmental planned (external)","130272046","27/11/2019","Maintenance Programme","Centralised R&M","R2001"
"Wolverhampton City Council","http://opendatacommunities.org/id/metropolitan-district-council/wolverhampton","702723","Concept Elevators (UK) Ltd","432.00","R&M - Departmental planned (external)","130271846","27/11/2019","Maintenance Programme","Centralised R&M","R2001"
"Wolverhampton City Council","http://opendatacommunities.org/id/metropolitan-district-council/wolverhampton","702723","Concept Elevators (UK) Ltd","218.08","R&M - Departmental planned (external)","130270034","06/11/2019","Facilities Management","Magistrates","R2001"
"Wolverhampton City Council","http://opendatacommunities.org/id/metropolitan-district-council/wolverhampton","702723","Concept Elevators (UK) Ltd","108.00","R&M - Departmental planned (external)","130272576","27/11/2019","Maintenance Programme","Centralised R&M","R2001"
"Wolverhampton City Council","http://opendatacommunities.org/id/metropolitan-district-council/wolverhampton","702723","Concept Elevators (UK) Ltd","99.00","R&M - Departmental planned (external)","130270032","08/11/2019","Maintenance Programme","Centralised R&M","R2001"
"Wolverhampton City Council","http://opendatacommunities.org/id/metropolitan-district-council/wolverhampton","702723","Concept Elevators (UK) Ltd","90.00","R&M - Departmental planned (external)","130269215","01/11/2019","Maintenance Programme","Centralised R&M","R2001"
"Wolverhampton City Council","http://opendatacommunities.org/id/metropolitan-district-council/wolverhampton","702738","Connevans Limited","408.07","Services - Assistive technology","130271571","20/11/2019","Special Educational Needs","SEN Sensory Inclusion","R4407"
"Wolverhampton City Council","http://opendatacommunities.org/id/metropolitan-district-council/wolverhampton","702749","Contemporary Art Society","1,700.00","Subscriptions","130272916","27/11/2019","Visitor Economy","Art Gallery","R4701"
"Wolverhampton City Council","http://opendatacommunities.org/id/metropolitan-district-council/wolverhampton","702766","Cooper Mobile Services Ltd","1,819.82","Vehicle Maintenance - Repairs","130271847","22/11/2019","Waste and Recycling","Anchor Lane Civic Amenity Site","R3022"
"Wolverhampton City Council","http://opendatacommunities.org/id/metropolitan-district-council/wolverhampton","702766","Cooper Mobile Services Ltd","2,076.86","Vehicle Maintenance - Repairs","130271848","22/11/2019","Waste and Recycling","Shaw Road Civic Amenity Site","R3022"
"Wolverhampton City Council","http://opendatacommunities.org/id/metropolitan-district-council/wolverhampton","702766","Cooper Mobile Services Ltd","3,450.00","Hire of Vehicles","190663930","22/11/2019","Fleet Services","Fleet Management","R3200"
"Wolverhampton City Council","http://opendatacommunities.org/id/metropolitan-district-council/wolverhampton","702766","Cooper Mobile Services Ltd","2,361.72","Vehicle Maintenance - Repairs","130269529","08/11/2019","Waste and Recycling","Shaw Road Civic Amenity Site","R3022"
"Wolverhampton City Council","http://opendatacommunities.org/id/metropolitan-district-council/wolverhampton","702766","Cooper Mobile Services Ltd","2,025.46","Vehicle Maintenance - Repairs","130268944","06/11/2019","Waste and Recycling","Shaw Road Civic Amenity Site","R3022"
"Wolverhampton City Council","http://opendatacommunities.org/id/metropolitan-district-council/wolverhampton","702766","Cooper Mobile Services Ltd","106.00","Services - Professional Fees","190660544","15/11/2019","Fleet Services","Fleet Management","R4400"
"Wolverhampton City Council","http://opendatacommunities.org/id/metropolitan-district-council/wolverhampton","702766","Cooper Mobile Services Ltd","218.76","Services - Professional Fees","190660544","15/11/2019","Fleet Services","Fleet Management","R4400"
"Wolverhampton City Council","http://opendatacommunities.org/id/metropolitan-district-council/wolverhampton","702766","Cooper Mobile Services Ltd","260.00","Services - Professional Fees","190660544","15/11/2019","Fleet Services","Fleet Management","R4400"
"Wolverhampton City Council","http://opendatacommunities.org/id/metropolitan-district-council/wolverhampton","702766","Cooper Mobile Services Ltd","3,220.00","Hire of Vehicles","190663929","22/11/2019","Fleet Services","Fleet Management","R3200"
"Wolverhampton City Council","http://opendatacommunities.org/id/metropolitan-district-council/wolverhampton","702766","Cooper Mobile Services Ltd","185.85","Insurance - General","130268826","13/11/2019","Waste and Recycling","Waste Collection and Recycling Service - General","R4962"
"Wolverhampton City Council","http://opendatacommunities.org/id/metropolitan-district-council/wolverhampton","702766","Cooper Mobile Services Ltd","1,978.00","Hire of Vehicles","190663928","22/11/2019","Fleet Services","Fleet Management","R3200"
"Wolverhampton City Council","http://opendatacommunities.org/id/metropolitan-district-council/wolverhampton","702766","Cooper Mobile Services Ltd","1,976.36","Vehicle Maintenance - Repairs","130268945","06/11/2019","Waste and Recycling","Anchor Lane Civic Amenity Site","R3022"
"Wolverhampton City Council","http://opendatacommunities.org/id/metropolitan-district-council/wolverhampton","702786","Costa Ltd","1,144.63","Provisions (Resale)","130270545","27/11/2019","Leisure Services","Bert Williams Leisure Centre Caf�","R4102"
"Wolverhampton City Council","http://opendatacommunities.org/id/metropolitan-district-council/wolverhampton","702786","Costa Ltd","1,725.21","Provisions (Resale)","130267838","01/11/2019","Catering","West Park Tea Room","R4102"
"Wolverhampton City Council","http://opendatacommunities.org/id/metropolitan-district-council/wolverhampton","702786","Costa Ltd","991.49","Provisions (Resale)","130270036","27/11/2019","Catering","Civic Centre Catering","R4102"
"Wolverhampton City Council","http://opendatacommunities.org/id/metropolitan-district-council/wolverhampton","702786","Costa Ltd","715.97","Provisions (Resale)","130268413","06/11/2019","Leisure Services","Bert Williams Leisure Centre Caf�","R4102"
"Wolverhampton City Council","http://opendatacommunities.org/id/metropolitan-district-council/wolverhampton","702786","Costa Ltd","1,404.25","Provisions (Resale)","130268412","06/11/2019","Leisure Services","WV Active Catering","R4102"
"Wolverhampton City Council","http://opendatacommunities.org/id/metropolitan-district-council/wolverhampton","702786","Costa Ltd","1,294.75","Provisions (Resale)","130268690","08/11/2019","Catering","Civic Centre Catering","R4102"
"Wolverhampton City Council","http://opendatacommunities.org/id/metropolitan-district-council/wolverhampton","702786","Costa Ltd","-120.14","Provisions (Resale)","130266117","27/11/2019","Leisure Services","WV Active Catering","R4102"
"Wolverhampton City Council","http://opendatacommunities.org/id/metropolitan-district-council/wolverhampton","702796","Cougar Monitoring Limited","8,481.60","Services - Security","130270440","20/11/2019","Facilities Management","Culwell Street Depot","R4405"
"Wolverhampton City Council","http://opendatacommunities.org/id/metropolitan-district-council/wolverhampton","702796","Cougar Monitoring Limited","5,335.20","Services - Security","130270441","22/11/2019","Estates and Valuations","Industrial Premises ; Fordhouse Road","R4405"
"Wolverhampton City Council","http://opendatacommunities.org/id/metropolitan-district-council/wolverhampton","702796","Cougar Monitoring Limited","8,481.60","Services - Security","130270439","20/11/2019","Facilities Management","Hickman Avenue Depot","R4405"
"Wolverhampton City Council","http://opendatacommunities.org/id/metropolitan-district-council/wolverhampton","702815","Coventry City Council","675.00","Services - Professional Fees","130272412","22/11/2019","School Organisation","Music Support Team","R4400"
"Wolverhampton City Council","http://opendatacommunities.org/id/metropolitan-district-council/wolverhampton","702821","Cpl Petroleum","20,618.88","Inventories","190658318","06/11/2019","-","General Fund Balance Sheet","B3000"
"Wolverhampton City Council","http://opendatacommunities.org/id/metropolitan-district-council/wolverhampton","702821","Cpl Petroleum","20,834.69","Inventories","190658317","06/11/2019","-","General Fund Balance Sheet","B3000"
"Wolverhampton City Council","http://opendatacommunities.org/id/metropolitan-district-council/wolverhampton","702821","Cpl Petroleum","20,277.38","Inventories","190667289","29/11/2019","-","General Fund Balance Sheet","B3000"
"Wolverhampton City Council","http://opendatacommunities.org/id/metropolitan-district-council/wolverhampton","702821","Cpl Petroleum","21,047.59","Inventories","190658312","06/11/2019","-","General Fund Balance Sheet","B3000"
"Wolverhampton City Council","http://opendatacommunities.org/id/metropolitan-district-council/wolverhampton","702821","Cpl Petroleum","20,282.31","Inventories","190663359","20/11/2019","-","General Fund Balance Sheet","B3000"
"Wolverhampton City Council","http://opendatacommunities.org/id/metropolitan-district-council/wolverhampton","702821","Cpl Petroleum","20,947.05","Inventories","190658313","06/11/2019","-","General Fund Balance Sheet","B3000"
"Wolverhampton City Council","http://opendatacommunities.org/id/metropolitan-district-council/wolverhampton","702821","Cpl Petroleum","20,259.01","Inventories","190658319","06/11/2019","-","General Fund Balance Sheet","B3000"
"Wolverhampton City Council","http://opendatacommunities.org/id/metropolitan-district-council/wolverhampton","702821","Cpl Petroleum","20,118.01","Inventories","190663953","22/11/2019","-","General Fund Balance Sheet","B3000"
"Wolverhampton City Council","http://opendatacommunities.org/id/metropolitan-district-council/wolverhampton","702821","Cpl Petroleum","1,648.40","Inventories","190667290","29/11/2019","-","General Fund Balance Sheet","B3000"
"Wolverhampton City Council","http://opendatacommunities.org/id/metropolitan-district-council/wolverhampton","702821","Cpl Petroleum","1,719.90","Inventories","190658316","06/11/2019","-","General Fund Balance Sheet","B3000"
"Wolverhampton City Council","http://opendatacommunities.org/id/metropolitan-district-council/wolverhampton","702863","Credential Environmental Limited","211.30","TPP - Waste Disposal","130270546","22/11/2019","Waste Commerical Services","Commercial Waste Collection","R5003"
"Wolverhampton City Council","http://opendatacommunities.org/id/metropolitan-district-council/wolverhampton","702866","Cremation Society Of Great Britain","33.00","Subscriptions","130271689","27/11/2019","Bereavement Services","Cemeteries","R4701"
"Wolverhampton City Council","http://opendatacommunities.org/id/metropolitan-district-council/wolverhampton","702903","CTT (Wolverhampton) Limited","2,070.00","Client Transport","130271850","15/11/2019","Special Educational Needs","Special - Transport","R3042"
"Wolverhampton City Council","http://opendatacommunities.org/id/metropolitan-district-council/wolverhampton","702903","CTT (Wolverhampton) Limited","2,070.00","Client Transport","130272047","20/11/2019","Special Educational Needs","Special - Transport","R3042"
"Wolverhampton City Council","http://opendatacommunities.org/id/metropolitan-district-council/wolverhampton","702903","CTT (Wolverhampton) Limited","2,070.00","Client Transport","130271851","15/11/2019","Special Educational Needs","Special - Transport","R3042"
"Wolverhampton City Council","http://opendatacommunities.org/id/metropolitan-district-council/wolverhampton","702910","Cummings Brothers","16.00","Equipment - Purchase","130270712","15/11/2019","Bereavement Services","Cemeteries","R4000"
"Wolverhampton City Council","http://opendatacommunities.org/id/metropolitan-district-council/wolverhampton","702910","Cummings Brothers","479.65","Equipment - Purchase","130272048","27/11/2019","Adult Education","Foyer Building","R4000"
"Wolverhampton City Council","http://opendatacommunities.org/id/metropolitan-district-council/wolverhampton","702910","Cummings Brothers","42.71","Materials","130271852","20/11/2019","Environmental Services","Ground Maintenance East","R4007"
"Wolverhampton City Council","http://opendatacommunities.org/id/metropolitan-district-council/wolverhampton","702910","Cummings Brothers","60.00","R&M - Departmental response (Internal)","130271690","20/11/2019","Children & Young People In Care","LAC Transitions Accommodation","R2002"
"Wolverhampton City Council","http://opendatacommunities.org/id/metropolitan-district-council/wolverhampton","702910","Cummings Brothers","98.45","R&M - Departmental planned (external)","130269531","22/11/2019","Local Economy","Management Team","R2001"
"Wolverhampton City Council","http://opendatacommunities.org/id/metropolitan-district-council/wolverhampton","702910","Cummings Brothers","231.60","Materials","130272740","29/11/2019","Environmental Services","Ground Maintenance East","R4007"
"Wolverhampton City Council","http://opendatacommunities.org/id/metropolitan-district-council/wolverhampton","702910","Cummings Brothers","60.00","Fixtures and Fittings - Purchases","130269530","01/11/2019","Waste and Recycling","Waste Collection and Recycling Service - General","R2500"
"Wolverhampton City Council","http://opendatacommunities.org/id/metropolitan-district-council/wolverhampton","702910","Cummings Brothers","36.00","Fixtures and Fittings - Purchases","130269530","01/11/2019","Waste and Recycling","Waste Collection and Recycling Service - General","R2500"
"Wolverhampton City Council","http://opendatacommunities.org/id/metropolitan-district-council/wolverhampton","702910","Cummings Brothers","95.00","Services - Security","130271691","20/11/2019","Facilities Management","Management of Vacant Properties","R4405"
"Wolverhampton City Council","http://opendatacommunities.org/id/metropolitan-district-council/wolverhampton","702910","Cummings Brothers","20.00","Materials","130271853","27/11/2019","Environmental Services","Parks - Ranger Service","R4007"
"Wolverhampton City Council","http://opendatacommunities.org/id/metropolitan-district-council/wolverhampton","702910","Cummings Brothers","414.00","Fixtures and Fittings - Purchases","130272581","27/11/2019","Waste and Recycling","Shaw Road Civic Amenity Site","R2500"
"Wolverhampton City Council","http://opendatacommunities.org/id/metropolitan-district-council/wolverhampton","702939","D & N Solicitors","250.00","Services - Professional Fees","190665401","27/11/2019","Legal Services","Centralised External Legal Costs","R4400"
"Wolverhampton City Council","http://opendatacommunities.org/id/metropolitan-district-council/wolverhampton","702939","D & N Solicitors","215.00","Services - Professional Fees","190665402","27/11/2019","Legal Services","Centralised External Legal Costs","R4400"
"Wolverhampton City Council","http://opendatacommunities.org/id/metropolitan-district-council/wolverhampton","702974","Daisy Communications Limited (Vialtus)","2,289.00","Computing - Internet","130271409","27/11/2019","ICTS","Strategic ICTS (ICT Service Budget)","R4537"
"Wolverhampton City Council","http://opendatacommunities.org/id/metropolitan-district-council/wolverhampton","703044","DC Projects (Wolverhampton) Limited","154,499.93","TPP - Other contractors","130271223","29/11/2019","Leisure Services","Leisure P.F.I.Scheme","R5099"
"Wolverhampton City Council","http://opendatacommunities.org/id/metropolitan-district-council/wolverhampton","703050","De Lage Landen Leasing Limited","856.76","Services - Professional Fees","130270859","29/11/2019","Human Resources","Salary Sacrifice Schemes","R4400"
"Wolverhampton City Council","http://opendatacommunities.org/id/metropolitan-district-council/wolverhampton","703050","De Lage Landen Leasing Limited","1,060.76","Services - Professional Fees","130270442","27/11/2019","Human Resources","Salary Sacrifice Schemes","R4400"
"Wolverhampton City Council","http://opendatacommunities.org/id/metropolitan-district-council/wolverhampton","703050","De Lage Landen Leasing Limited","1,425.39","Services - Professional Fees","130268691","13/11/2019","Human Resources","Salary Sacrifice Schemes","R4400"
"Wolverhampton City Council","http://opendatacommunities.org/id/metropolitan-district-council/wolverhampton","703050","De Lage Landen Leasing Limited","1,089.46","Services - Professional Fees","130269380","20/11/2019","Human Resources","Salary Sacrifice Schemes","R4400"
"Wolverhampton City Council","http://opendatacommunities.org/id/metropolitan-district-council/wolverhampton","703050","De Lage Landen Leasing Limited","856.76","Services - Professional Fees","130267695","01/11/2019","Human Resources","Salary Sacrifice Schemes","R4400"
"Wolverhampton City Council","http://opendatacommunities.org/id/metropolitan-district-council/wolverhampton","703063","Dell Corporation/Dell Incorporated","2,350.66","Computing - Purchase of Hardware","130269216","06/11/2019","School Organisation","Technical Support","R4530"
"Wolverhampton City Council","http://opendatacommunities.org/id/metropolitan-district-council/wolverhampton","703063","Dell Corporation/Dell Incorporated","5,432.00","Computing - Purchase of Hardware","130272741","27/11/2019","School Organisation","Technical Support","R4530"
"Wolverhampton City Council","http://opendatacommunities.org/id/metropolitan-district-council/wolverhampton","703063","Dell Corporation/Dell Incorporated","19,264.50","Computing - Purchase of Hardware","130270547","13/11/2019","School Organisation","Technical Support","R4530"
"Wolverhampton City Council","http://opendatacommunities.org/id/metropolitan-district-council/wolverhampton","703063","Dell Corporation/Dell Incorporated","2,129.24","Computing - Purchase of Hardware","130271410","22/11/2019","Adult Education","ICT Services","R4530"
"Wolverhampton City Council","http://opendatacommunities.org/id/metropolitan-district-council/wolverhampton","703063","Dell Corporation/Dell Incorporated","261.12","Computing - Purchase of Hardware","130271410","22/11/2019","Adult Education","ICT Services","R4530"
"Wolverhampton City Council","http://opendatacommunities.org/id/metropolitan-district-council/wolverhampton","703063","Dell Corporation/Dell Incorporated","451.20","Computing - Purchase of Hardware","130271410","22/11/2019","Adult Education","ICT Services","R4530"
"Wolverhampton City Council","http://opendatacommunities.org/id/metropolitan-district-council/wolverhampton","703063","Dell Corporation/Dell Incorporated","3,852.90","Computing - Purchase of Hardware","130269532","15/11/2019","School Organisation","Technical Support","R4530"
"Wolverhampton City Council","http://opendatacommunities.org/id/metropolitan-district-council/wolverhampton","703063","Dell Corporation/Dell Incorporated","438.42","Computing - Purchase of Hardware","130269217","06/11/2019","School Organisation","Technical Support","R4530"
"Wolverhampton City Council","http://opendatacommunities.org/id/metropolitan-district-council/wolverhampton","703074","Dennis Eagle Limited","25.53","Equipment - Purchase","190656822","01/11/2019","Fleet Services","Fleet Management","R4000"
"Wolverhampton City Council","http://opendatacommunities.org/id/metropolitan-district-council/wolverhampton","703074","Dennis Eagle Limited","173.15","Equipment - Purchase","190656824","01/11/2019","Fleet Services","Fleet Management","R4000"
"Wolverhampton City Council","http://opendatacommunities.org/id/metropolitan-district-council/wolverhampton","703074","Dennis Eagle Limited","1,905.13","Equipment - Purchase","190660555","15/11/2019","Fleet Services","Fleet Management","R4000"
"Wolverhampton City Council","http://opendatacommunities.org/id/metropolitan-district-council/wolverhampton","703074","Dennis Eagle Limited","125.95","Equipment - Purchase","190660555","15/11/2019","Fleet Services","Fleet Management","R4000"
"Wolverhampton City Council","http://opendatacommunities.org/id/metropolitan-district-council/wolverhampton","703074","Dennis Eagle Limited","63.66","Equipment - Purchase","190660555","15/11/2019","Fleet Services","Fleet Management","R4000"
"Wolverhampton City Council","http://opendatacommunities.org/id/metropolitan-district-council/wolverhampton","703074","Dennis Eagle Limited","1,190.70","Equipment - Purchase","190656818","01/11/2019","Fleet Services","Fleet Management","R4000"
"Wolverhampton City Council","http://opendatacommunities.org/id/metropolitan-district-council/wolverhampton","703074","Dennis Eagle Limited","43.94","Equipment - Purchase","190656820","01/11/2019","Fleet Services","Fleet Management","R4000"
"Wolverhampton City Council","http://opendatacommunities.org/id/metropolitan-district-council/wolverhampton","703074","Dennis Eagle Limited","25.21","Equipment - Purchase","190659292","08/11/2019","Fleet Services","Fleet Management","R4000"
"Wolverhampton City Council","http://opendatacommunities.org/id/metropolitan-district-council/wolverhampton","703074","Dennis Eagle Limited","25.37","Equipment - Purchase","190659292","08/11/2019","Fleet Services","Fleet Management","R4000"
"Wolverhampton City Council","http://opendatacommunities.org/id/metropolitan-district-council/wolverhampton","703074","Dennis Eagle Limited","127.84","Equipment - Purchase","190660556","15/11/2019","Fleet Services","Fleet Management","R4000"
"Wolverhampton City Council","http://opendatacommunities.org/id/metropolitan-district-council/wolverhampton","703074","Dennis Eagle Limited","84.12","Equipment - Purchase","190656812","01/11/2019","Fleet Services","Fleet Management","R4000"
"Wolverhampton City Council","http://opendatacommunities.org/id/metropolitan-district-council/wolverhampton","703074","Dennis Eagle Limited","213.07","Equipment - Purchase","190656819","01/11/2019","Fleet Services","Fleet Management","R4000"
"Wolverhampton City Council","http://opendatacommunities.org/id/metropolitan-district-council/wolverhampton","703074","Dennis Eagle Limited","40.21","Equipment - Purchase","190656815","01/11/2019","Fleet Services","Fleet Management","R4000"
"Wolverhampton City Council","http://opendatacommunities.org/id/metropolitan-district-council/wolverhampton","703074","Dennis Eagle Limited","105.70","Equipment - Purchase","190656815","01/11/2019","Fleet Services","Fleet Management","R4000"
"Wolverhampton City Council","http://opendatacommunities.org/id/metropolitan-district-council/wolverhampton","703074","Dennis Eagle Limited","43.33","Equipment - Purchase","190656815","01/11/2019","Fleet Services","Fleet Management","R4000"
"Wolverhampton City Council","http://opendatacommunities.org/id/metropolitan-district-council/wolverhampton","703074","Dennis Eagle Limited","15.67","Equipment - Purchase","190656815","01/11/2019","Fleet Services","Fleet Management","R4000"
"Wolverhampton City Council","http://opendatacommunities.org/id/metropolitan-district-council/wolverhampton","703074","Dennis Eagle Limited","62.68","Equipment - Purchase","190656816","01/11/2019","Fleet Services","Fleet Management","R4000"
"Wolverhampton City Council","http://opendatacommunities.org/id/metropolitan-district-council/wolverhampton","703074","Dennis Eagle Limited","118.66","Equipment - Purchase","190656816","01/11/2019","Fleet Services","Fleet Management","R4000"
"Wolverhampton City Council","http://opendatacommunities.org/id/metropolitan-district-council/wolverhampton","703074","Dennis Eagle Limited","58.92","Equipment - Purchase","190656815","01/11/2019","Fleet Services","Fleet Management","R4000"
"Wolverhampton City Council","http://opendatacommunities.org/id/metropolitan-district-council/wolverhampton","703074","Dennis Eagle Limited","93.13","Equipment - Purchase","190656815","01/11/2019","Fleet Services","Fleet Management","R4000"
"Wolverhampton City Council","http://opendatacommunities.org/id/metropolitan-district-council/wolverhampton","703074","Dennis Eagle Limited","260.63","Equipment - Purchase","190656815","01/11/2019","Fleet Services","Fleet Management","R4000"
"Wolverhampton City Council","http://opendatacommunities.org/id/metropolitan-district-council/wolverhampton","703074","Dennis Eagle Limited","51.42","Equipment - Purchase","190656815","01/11/2019","Fleet Services","Fleet Management","R4000"
"Wolverhampton City Council","http://opendatacommunities.org/id/metropolitan-district-council/wolverhampton","703074","Dennis Eagle Limited","87.20","Equipment - Purchase","190656815","01/11/2019","Fleet Services","Fleet Management","R4000"
"Wolverhampton City Council","http://opendatacommunities.org/id/metropolitan-district-council/wolverhampton","703074","Dennis Eagle Limited","183.08","Equipment - Purchase","190656815","01/11/2019","Fleet Services","Fleet Management","R4000"
"Wolverhampton City Council","http://opendatacommunities.org/id/metropolitan-district-council/wolverhampton","703074","Dennis Eagle Limited","136.49","Equipment - Purchase","190663367","20/11/2019","Fleet Services","Fleet Management","R4000"
"Wolverhampton City Council","http://opendatacommunities.org/id/metropolitan-district-council/wolverhampton","703074","Dennis Eagle Limited","104.36","Equipment - Purchase","190656817","01/11/2019","Fleet Services","Fleet Management","R4000"
"Wolverhampton City Council","http://opendatacommunities.org/id/metropolitan-district-council/wolverhampton","703074","Dennis Eagle Limited","932.24","Equipment - Purchase","190667299","29/11/2019","Fleet Services","Fleet Management","R4000"
"Wolverhampton City Council","http://opendatacommunities.org/id/metropolitan-district-council/wolverhampton","703074","Dennis Eagle Limited","1,190.70","Equipment - Purchase","190660554","15/11/2019","Fleet Services","Fleet Management","R4000"
"Wolverhampton City Council","http://opendatacommunities.org/id/metropolitan-district-council/wolverhampton","703074","Dennis Eagle Limited","564.93","Equipment - Purchase","190656813","01/11/2019","Fleet Services","Fleet Management","R4000"
"Wolverhampton City Council","http://opendatacommunities.org/id/metropolitan-district-council/wolverhampton","703074","Dennis Eagle Limited","15.01","Equipment - Purchase","190656814","01/11/2019","Fleet Services","Fleet Management","R4000"
"Wolverhampton City Council","http://opendatacommunities.org/id/metropolitan-district-council/wolverhampton","703074","Dennis Eagle Limited","8.95","Equipment - Purchase","190656814","01/11/2019","Fleet Services","Fleet Management","R4000"
"Wolverhampton City Council","http://opendatacommunities.org/id/metropolitan-district-council/wolverhampton","703074","Dennis Eagle Limited","14.76","Equipment - Purchase","190656821","01/11/2019","Fleet Services","Fleet Management","R4000"
"Wolverhampton City Council","http://opendatacommunities.org/id/metropolitan-district-council/wolverhampton","703074","Dennis Eagle Limited","184.94","Equipment - Purchase","190656823","01/11/2019","Fleet Services","Fleet Management","R4000"
"Wolverhampton City Council","http://opendatacommunities.org/id/metropolitan-district-council/wolverhampton","703074","Dennis Eagle Limited","168.52","Equipment - Purchase","190667300","29/11/2019","Fleet Services","Fleet Management","R4000"
"Wolverhampton City Council","http://opendatacommunities.org/id/metropolitan-district-council/wolverhampton","703074","Dennis Eagle Limited","43.62","Equipment - Purchase","190667298","29/11/2019","Fleet Services","Fleet Management","R4000"
"Wolverhampton City Council","http://opendatacommunities.org/id/metropolitan-district-council/wolverhampton","703074","Dennis Eagle Limited","7.93","Equipment - Purchase","190667298","29/11/2019","Fleet Services","Fleet Management","R4000"
"Wolverhampton City Council","http://opendatacommunities.org/id/metropolitan-district-council/wolverhampton","703102","Diamond People Limited","525.00","Computing - Licences","130272908","27/11/2019","The Hub","Payments Team","R4535"
"Wolverhampton City Council","http://opendatacommunities.org/id/metropolitan-district-council/wolverhampton","703126","Direct Healthcare Group","565.00","Equipment - R & M","130269533","20/11/2019","Older People Provider Services","ILS Stores","R4003"
"Wolverhampton City Council","http://opendatacommunities.org/id/metropolitan-district-council/wolverhampton","703134","Disable Aids (Cannock) Limited","55.00","Equipment - R & M","130272743","27/11/2019","Older People Provider Services","ILS Stores","R4003"
"Wolverhampton City Council","http://opendatacommunities.org/id/metropolitan-district-council/wolverhampton","703134","Disable Aids (Cannock) Limited","60.00","Equipment - R & M","130272924","27/11/2019","Older People Provider Services","ILS Stores","R4003"
"Wolverhampton City Council","http://opendatacommunities.org/id/metropolitan-district-council/wolverhampton","703134","Disable Aids (Cannock) Limited","78.63","Equipment - R & M","130272924","27/11/2019","Older People Provider Services","ILS Stores","R4003"
"Wolverhampton City Council","http://opendatacommunities.org/id/metropolitan-district-council/wolverhampton","703134","Disable Aids (Cannock) Limited","55.00","Equipment - R & M","130272926","27/11/2019","Older People Provider Services","ILS Stores","R4003"
"Wolverhampton City Council","http://opendatacommunities.org/id/metropolitan-district-council/wolverhampton","703134","Disable Aids (Cannock) Limited","55.00","Equipment - R & M","130271573","15/11/2019","Older People Provider Services","ILS Stores","R4003"
"Wolverhampton City Council","http://opendatacommunities.org/id/metropolitan-district-council/wolverhampton","703134","Disable Aids (Cannock) Limited","60.00","Equipment - R & M","130272413","22/11/2019","Older People Provider Services","ILS Stores","R4003"
"Wolverhampton City Council","http://opendatacommunities.org/id/metropolitan-district-council/wolverhampton","703134","Disable Aids (Cannock) Limited","30.00","Equipment - R & M","130270039","08/11/2019","Older People Provider Services","ILS Stores","R4003"
"Wolverhampton City Council","http://opendatacommunities.org/id/metropolitan-district-council/wolverhampton","703134","Disable Aids (Cannock) Limited","55.00","Equipment - R & M","130272745","27/11/2019","Older People Provider Services","ILS Stores","R4003"
"Wolverhampton City Council","http://opendatacommunities.org/id/metropolitan-district-council/wolverhampton","703134","Disable Aids (Cannock) Limited","55.00","Equipment - R & M","130270037","06/11/2019","Older People Provider Services","ILS Stores","R4003"
"Wolverhampton City Council","http://opendatacommunities.org/id/metropolitan-district-council/wolverhampton","703134","Disable Aids (Cannock) Limited","30.00","Equipment - R & M","130270037","06/11/2019","Older People Provider Services","ILS Stores","R4003"
"Wolverhampton City Council","http://opendatacommunities.org/id/metropolitan-district-council/wolverhampton","703134","Disable Aids (Cannock) Limited","15.00","Equipment - R & M","130270037","06/11/2019","Older People Provider Services","ILS Stores","R4003"
"Wolverhampton City Council","http://opendatacommunities.org/id/metropolitan-district-council/wolverhampton","703134","Disable Aids (Cannock) Limited","12.50","Equipment - R & M","130270037","06/11/2019","Older People Provider Services","ILS Stores","R4003"
"Wolverhampton City Council","http://opendatacommunities.org/id/metropolitan-district-council/wolverhampton","703134","Disable Aids (Cannock) Limited","55.00","Equipment - R & M","130272215","20/11/2019","Older People Provider Services","ILS Stores","R4003"
"Wolverhampton City Council","http://opendatacommunities.org/id/metropolitan-district-council/wolverhampton","703134","Disable Aids (Cannock) Limited","30.00","Equipment - R & M","130272216","20/11/2019","Older People Provider Services","ILS Stores","R4003"
"Wolverhampton City Council","http://opendatacommunities.org/id/metropolitan-district-council/wolverhampton","703134","Disable Aids (Cannock) Limited","94.50","Equipment - R & M","130272415","22/11/2019","Older People Provider Services","ILS Stores","R4003"
"Wolverhampton City Council","http://opendatacommunities.org/id/metropolitan-district-council/wolverhampton","703134","Disable Aids (Cannock) Limited","55.00","Equipment - R & M","130272416","22/11/2019","Older People Provider Services","ILS Stores","R4003"
"Wolverhampton City Council","http://opendatacommunities.org/id/metropolitan-district-council/wolverhampton","703134","Disable Aids (Cannock) Limited","95.00","Equipment - Purchase","130270443","06/11/2019","Older People Provider Services","ILS Stores","R4000"
"Wolverhampton City Council","http://opendatacommunities.org/id/metropolitan-district-council/wolverhampton","703134","Disable Aids (Cannock) Limited","85.00","Equipment - R & M","130270040","06/11/2019","Older People Provider Services","ILS Stores","R4003"
"Wolverhampton City Council","http://opendatacommunities.org/id/metropolitan-district-council/wolverhampton","703134","Disable Aids (Cannock) Limited","55.00","Equipment - R & M","130272744","27/11/2019","Older People Provider Services","ILS Stores","R4003"
"Wolverhampton City Council","http://opendatacommunities.org/id/metropolitan-district-council/wolverhampton","703134","Disable Aids (Cannock) Limited","2,250.00","Equipment - Purchase","130273308","29/11/2019","Older People Provider Services","ILS Stores","R4000"
"Wolverhampton City Council","http://opendatacommunities.org/id/metropolitan-district-council/wolverhampton","703134","Disable Aids (Cannock) Limited","90.00","Equipment - R & M","130272925","27/11/2019","Older People Provider Services","ILS Stores","R4003"
"Wolverhampton City Council","http://opendatacommunities.org/id/metropolitan-district-council/wolverhampton","703134","Disable Aids (Cannock) Limited","55.00","Equipment - R & M","130272927","27/11/2019","Older People Provider Services","ILS Stores","R4003"
"Wolverhampton City Council","http://opendatacommunities.org/id/metropolitan-district-council/wolverhampton","703134","Disable Aids (Cannock) Limited","1,037.00","Equipment - Purchase","130267843","08/11/2019","Older People Provider Services","ILS Stores","R4000"
"Wolverhampton City Council","http://opendatacommunities.org/id/metropolitan-district-council/wolverhampton","703134","Disable Aids (Cannock) Limited","55.00","Equipment - R & M","130271572","15/11/2019","Older People Provider Services","ILS Stores","R4003"
"Wolverhampton City Council","http://opendatacommunities.org/id/metropolitan-district-council/wolverhampton","703134","Disable Aids (Cannock) Limited","39.50","Equipment - R & M","130271572","15/11/2019","Older People Provider Services","ILS Stores","R4003"
"Wolverhampton City Council","http://opendatacommunities.org/id/metropolitan-district-council/wolverhampton","703134","Disable Aids (Cannock) Limited","67.50","Equipment - R & M","130272929","29/11/2019","Older People Provider Services","ILS Stores","R4003"
"Wolverhampton City Council","http://opendatacommunities.org/id/metropolitan-district-council/wolverhampton","703134","Disable Aids (Cannock) Limited","2,884.60","Grants paid out to other organisations","190662482","20/11/2019","-","Disabled Facilities Grants","C5011"
"Wolverhampton City Council","http://opendatacommunities.org/id/metropolitan-district-council/wolverhampton","703134","Disable Aids (Cannock) Limited","75.00","Equipment - R & M","130272214","20/11/2019","Older People Provider Services","ILS Stores","R4003"
"Wolverhampton City Council","http://opendatacommunities.org/id/metropolitan-district-council/wolverhampton","703134","Disable Aids (Cannock) Limited","67.50","Equipment - R & M","130272414","22/11/2019","Older People Provider Services","ILS Stores","R4003"
"Wolverhampton City Council","http://opendatacommunities.org/id/metropolitan-district-council/wolverhampton","703134","Disable Aids (Cannock) Limited","135.00","Equipment - R & M","130272417","22/11/2019","Older People Provider Services","ILS Stores","R4003"
"Wolverhampton City Council","http://opendatacommunities.org/id/metropolitan-district-council/wolverhampton","703134","Disable Aids (Cannock) Limited","25.00","Equipment - R & M","130270042","06/11/2019","Older People Provider Services","ILS Stores","R4003"
"Wolverhampton City Council","http://opendatacommunities.org/id/metropolitan-district-council/wolverhampton","703134","Disable Aids (Cannock) Limited","25.00","Equipment - R & M","130270041","06/11/2019","Older People Provider Services","ILS Stores","R4003"
"Wolverhampton City Council","http://opendatacommunities.org/id/metropolitan-district-council/wolverhampton","703134","Disable Aids (Cannock) Limited","55.00","Equipment - R & M","130269809","06/11/2019","Older People Provider Services","ILS Stores","R4003"
"Wolverhampton City Council","http://opendatacommunities.org/id/metropolitan-district-council/wolverhampton","703134","Disable Aids (Cannock) Limited","55.00","Equipment - R & M","130271574","15/11/2019","Older People Provider Services","ILS Stores","R4003"
"Wolverhampton City Council","http://opendatacommunities.org/id/metropolitan-district-council/wolverhampton","703134","Disable Aids (Cannock) Limited","30.00","Equipment - R & M","130272928","27/11/2019","Older People Provider Services","ILS Stores","R4003"
"Wolverhampton City Council","http://opendatacommunities.org/id/metropolitan-district-council/wolverhampton","703134","Disable Aids (Cannock) Limited","55.00","Equipment - R & M","130270038","06/11/2019","Older People Provider Services","ILS Stores","R4003"
"Wolverhampton City Council","http://opendatacommunities.org/id/metropolitan-district-council/wolverhampton","703153","DMW Environmental Safety Limited","85.00","Services - Professional Fees","130271692","20/11/2019","Housing","Private Sector Housing","R4400"
"Wolverhampton City Council","http://opendatacommunities.org/id/metropolitan-district-council/wolverhampton","703155","Critiqom Limited","1,102.25","Comms - Postage","130270860","27/11/2019","Revenues & Benefits","Revenues","R4503"
"Wolverhampton City Council","http://opendatacommunities.org/id/metropolitan-district-council/wolverhampton","703155","Critiqom Limited","1,322.12","Comms - Postage","130267388","15/11/2019","Revenues & Benefits","Revenues","R4503"
"Wolverhampton City Council","http://opendatacommunities.org/id/metropolitan-district-council/wolverhampton","703155","Critiqom Limited","9,438.06","Comms - Postage","130271806","15/11/2019","Revenues & Benefits","Revenues","R4503"
"Wolverhampton City Council","http://opendatacommunities.org/id/metropolitan-district-council/wolverhampton","703155","Critiqom Limited","9,438.06","Comms - Postage","130271806","15/11/2019","Revenues & Benefits","Revenues","R4503"
"Wolverhampton City Council","http://opendatacommunities.org/id/metropolitan-district-council/wolverhampton","703155","Critiqom Limited","8,144.33","Comms - Postage","130267389","15/11/2019","Revenues & Benefits","Revenues","R4503"
"Wolverhampton City Council","http://opendatacommunities.org/id/metropolitan-district-council/wolverhampton","703155","Critiqom Limited","5.00","Comms - Postage","130269079","20/11/2019","Revenues & Benefits","Revenues","R4503"
"Wolverhampton City Council","http://opendatacommunities.org/id/metropolitan-district-council/wolverhampton","703155","Critiqom Limited","7,386.88","Comms - Postage","130270861","27/11/2019","Revenues & Benefits","Revenues","R4503"
"Wolverhampton City Council","http://opendatacommunities.org/id/metropolitan-district-council/wolverhampton","703155","Critiqom Limited","10.00","Comms - Postage","130269080","20/11/2019","Revenues & Benefits","Revenues","R4503"
"Wolverhampton City Council","http://opendatacommunities.org/id/metropolitan-district-council/wolverhampton","703156","Dodd Group (Midlands)Limited","250.00","Computing - Purchase of Hardware","130272420","27/11/2019","Governance Services","Democratic Support","R4530"
"Wolverhampton City Council","http://opendatacommunities.org/id/metropolitan-district-council/wolverhampton","703156","Dodd Group (Midlands)Limited","953.00","Computing - Purchase of Hardware","130272419","27/11/2019","Customer Services","City Direct","R4530"
"Wolverhampton City Council","http://opendatacommunities.org/id/metropolitan-district-council/wolverhampton","703181","Dr D M Bush Penn Surgery","2,625.00","TPP - Public Health Contracts","190660347","13/11/2019","Healthy Life Expectancy","Healthy Lifestyles","R5060"
"Wolverhampton City Council","http://opendatacommunities.org/id/metropolitan-district-council/wolverhampton","703181","Dr D M Bush Penn Surgery","123.50","TPP - Public Health Contracts","190660346","13/11/2019","Healthy Life Expectancy","Healthy Lifestyles","R5060"
"Wolverhampton City Council","http://opendatacommunities.org/id/metropolitan-district-council/wolverhampton","703184","Dr Ds Bagary & Mrs Jk Bagary","43.50","TPP - Public Health Contracts","190666724","29/11/2019","Healthy Life Expectancy","Healthy Lifestyles","R5060"
"Wolverhampton City Council","http://opendatacommunities.org/id/metropolitan-district-council/wolverhampton","703184","Dr Ds Bagary & Mrs Jk Bagary","1,100.00","TPP - Public Health Contracts","190666725","29/11/2019","Healthy Life Expectancy","Healthy Lifestyles","R5060"
"Wolverhampton City Council","http://opendatacommunities.org/id/metropolitan-district-council/wolverhampton","703186","Dr E George & Dr R Rajcholan","35.00","TPP - Public Health Contracts","190660323","22/11/2019","Healthy Life Expectancy","Healthy Lifestyles","R5060"
"Wolverhampton City Council","http://opendatacommunities.org/id/metropolitan-district-council/wolverhampton","703186","Dr E George & Dr R Rajcholan","875.00","TPP - Public Health Contracts","190660324","22/11/2019","Healthy Life Expectancy","Healthy Lifestyles","R5060"
"Wolverhampton City Council","http://opendatacommunities.org/id/metropolitan-district-council/wolverhampton","703186","Dr E George & Dr R Rajcholan","575.00","TPP - Public Health Contracts","190629246","22/11/2019","Healthy Life Expectancy","Healthy Lifestyles","R5060"
"Wolverhampton City Council","http://opendatacommunities.org/id/metropolitan-district-council/wolverhampton","703186","Dr E George & Dr R Rajcholan","31.00","TPP - Public Health Contracts","190660325","22/11/2019","Healthy Life Expectancy","Healthy Lifestyles","R5060"
"Wolverhampton City Council","http://opendatacommunities.org/id/metropolitan-district-council/wolverhampton","703186","Dr E George & Dr R Rajcholan","800.00","TPP - Public Health Contracts","190660326","22/11/2019","Healthy Life Expectancy","Healthy Lifestyles","R5060"
"Wolverhampton City Council","http://opendatacommunities.org/id/metropolitan-district-council/wolverhampton","703186","Dr E George & Dr R Rajcholan","95.00","TPP - Public Health Contracts","190629245","22/11/2019","Healthy Life Expectancy","Healthy Lifestyles","R5060"
"Wolverhampton City Council","http://opendatacommunities.org/id/metropolitan-district-council/wolverhampton","703194","Dr J M Fowler","50.00","Services - Professional Fees","190666901","29/11/2019","Children & Young People In Care","Fostering Team & Allowances","R4400"
"Wolverhampton City Council","http://opendatacommunities.org/id/metropolitan-district-council/wolverhampton","703196","Tettenhall Medical Practice","2,800.00","TPP - Public Health Contracts","190666705","29/11/2019","Healthy Life Expectancy","Healthy Lifestyles","R5060"
"Wolverhampton City Council","http://opendatacommunities.org/id/metropolitan-district-council/wolverhampton","703196","Tettenhall Medical Practice","54.00","TPP - Public Health Contracts","190666704","29/11/2019","Healthy Life Expectancy","Healthy Lifestyles","R5060"
"Wolverhampton City Council","http://opendatacommunities.org/id/metropolitan-district-council/wolverhampton","703201","Dr L M Rippon","377.00","Services - Professional Fees","130272423","27/11/2019","Legal Services","Centralised External Legal Costs","R4400"
"Wolverhampton City Council","http://opendatacommunities.org/id/metropolitan-district-council/wolverhampton","703210","Dr N J Whitehouse","125.00","TPP - Public Health Contracts","190660336","13/11/2019","Healthy Life Expectancy","Healthy Lifestyles","R5060"
"Wolverhampton City Council","http://opendatacommunities.org/id/metropolitan-district-council/wolverhampton","703210","Dr N J Whitehouse","1.50","TPP - Public Health Contracts","190660335","13/11/2019","Healthy Life Expectancy","Healthy Lifestyles","R5060"
"Wolverhampton City Council","http://opendatacommunities.org/id/metropolitan-district-council/wolverhampton","703216","Dr Pahwa & Dr Pahwa","125.00","TPP - Public Health Contracts","190660322","13/11/2019","Healthy Life Expectancy","Healthy Lifestyles","R5060"
"Wolverhampton City Council","http://opendatacommunities.org/id/metropolitan-district-council/wolverhampton","703216","Dr Pahwa & Dr Pahwa","3.50","TPP - Public Health Contracts","190660321","13/11/2019","Healthy Life Expectancy","Healthy Lifestyles","R5060"
"Wolverhampton City Council","http://opendatacommunities.org/id/metropolitan-district-council/wolverhampton","703217","Dr Parkes And Partners","1,425.00","TPP - Public Health Contracts","190666699","29/11/2019","Healthy Life Expectancy","Healthy Lifestyles","R5060"
"Wolverhampton City Council","http://opendatacommunities.org/id/metropolitan-district-council/wolverhampton","703217","Dr Parkes And Partners","104.50","TPP - Public Health Contracts","190666698","29/11/2019","Healthy Life Expectancy","Healthy Lifestyles","R5060"
"Wolverhampton City Council","http://opendatacommunities.org/id/metropolitan-district-council/wolverhampton","703218","Woden Road Surgery","302.00","TPP - Public Health Contracts","190666706","29/11/2019","Healthy Life Expectancy","Healthy Lifestyles","R5060"
"Wolverhampton City Council","http://opendatacommunities.org/id/metropolitan-district-council/wolverhampton","703218","Woden Road Surgery","2,600.00","TPP - Public Health Contracts","190666707","29/11/2019","Healthy Life Expectancy","Healthy Lifestyles","R5060"
"Wolverhampton City Council","http://opendatacommunities.org/id/metropolitan-district-council/wolverhampton","703221","Dr R Kharwadkar","1,275.00","TPP - Public Health Contracts","190660334","13/11/2019","Healthy Life Expectancy","Healthy Lifestyles","R5060"
"Wolverhampton City Council","http://opendatacommunities.org/id/metropolitan-district-council/wolverhampton","703221","Dr R Kharwadkar","1.50","TPP - Public Health Contracts","190660333","13/11/2019","Healthy Life Expectancy","Healthy Lifestyles","R5060"
"Wolverhampton City Council","http://opendatacommunities.org/id/metropolitan-district-council/wolverhampton","703224","Dr S K Suryani","28.00","TPP - Public Health Contracts","190666700","29/11/2019","Healthy Life Expectancy","Healthy Lifestyles","R5060"
"Wolverhampton City Council","http://opendatacommunities.org/id/metropolitan-district-council/wolverhampton","703224","Dr S K Suryani","600.00","TPP - Public Health Contracts","190666701","29/11/2019","Healthy Life Expectancy","Healthy Lifestyles","R5060"
"Wolverhampton City Council","http://opendatacommunities.org/id/metropolitan-district-council/wolverhampton","703225","Dr S Mittal","1,900.00","TPP - Public Health Contracts","190666714","29/11/2019","Healthy Life Expectancy","Healthy Lifestyles","R5060"
"Wolverhampton City Council","http://opendatacommunities.org/id/metropolitan-district-council/wolverhampton","703225","Dr S Mittal","45.00","TPP - Public Health Contracts","190666713","29/11/2019","Healthy Life Expectancy","Healthy Lifestyles","R5060"
"Wolverhampton City Council","http://opendatacommunities.org/id/metropolitan-district-council/wolverhampton","703228","Dr S Vij & Partners","76.24","Services - Professional Fees","190660076","13/11/2019","Children & Young People In Care","Fostering Team & Allowances","R4400"
"Wolverhampton City Council","http://opendatacommunities.org/id/metropolitan-district-council/wolverhampton","703228","Dr S Vij & Partners","76.24","Services - Professional Fees","190660077","13/11/2019","Children & Young People In Care","Fostering Team & Allowances","R4400"
"Wolverhampton City Council","http://opendatacommunities.org/id/metropolitan-district-council/wolverhampton","703228","Dr S Vij & Partners","78.24","Services - Professional Fees","190659802","13/11/2019","Children & Young People In Care","Fostering Team","R4400"
"Wolverhampton City Council","http://opendatacommunities.org/id/metropolitan-district-council/wolverhampton","703251","Drive DeVilbiss Health Care Limited","402.78","Equipment - Purchase","130271854","20/11/2019","Older People Provider Services","ILS Stores","R4000"
"Wolverhampton City Council","http://opendatacommunities.org/id/metropolitan-district-council/wolverhampton","703253","Drs A E Williams D Derosa & M Elcock","362.00","TPP - Public Health Contracts","190660331","13/11/2019","Healthy Life Expectancy","Healthy Lifestyles","R5060"
"Wolverhampton City Council","http://opendatacommunities.org/id/metropolitan-district-council/wolverhampton","703253","Drs A E Williams D Derosa & M Elcock","2,625.00","TPP - Public Health Contracts","190660332","13/11/2019","Healthy Life Expectancy","Healthy Lifestyles","R5060"
"Wolverhampton City Council","http://opendatacommunities.org/id/metropolitan-district-council/wolverhampton","703254","Drs Cowen Manley And Guest","48.50","TPP - Public Health Contracts","190660313","13/11/2019","Healthy Life Expectancy","Healthy Lifestyles","R5060"
"Wolverhampton City Council","http://opendatacommunities.org/id/metropolitan-district-council/wolverhampton","703254","Drs Cowen Manley And Guest","3,075.00","TPP - Public Health Contracts","190660314","13/11/2019","Healthy Life Expectancy","Healthy Lifestyles","R5060"
"Wolverhampton City Council","http://opendatacommunities.org/id/metropolitan-district-council/wolverhampton","703258","Drs Kehler & Naz","75.00","TPP - Public Health Contracts","190666708","29/11/2019","Healthy Life Expectancy","Healthy Lifestyles","R5060"
"Wolverhampton City Council","http://opendatacommunities.org/id/metropolitan-district-council/wolverhampton","703260","Drs R Bilas & A Thomas","0.50","TPP - Public Health Contracts","190660327","13/11/2019","Healthy Life Expectancy","Healthy Lifestyles","R5060"
"Wolverhampton City Council","http://opendatacommunities.org/id/metropolitan-district-council/wolverhampton","703260","Drs R Bilas & A Thomas","225.00","TPP - Public Health Contracts","190660328","13/11/2019","Healthy Life Expectancy","Healthy Lifestyles","R5060"
"Wolverhampton City Council","http://opendatacommunities.org/id/metropolitan-district-council/wolverhampton","703269","D-Tox","79.28","Room Hire","130269221","01/11/2019","Licensing","Private Hire Vehicles","R2201"
"Wolverhampton City Council","http://opendatacommunities.org/id/metropolitan-district-council/wolverhampton","703269","D-Tox","59.92","Room Hire","130269219","01/11/2019","Licensing","Private Hire Vehicles","R2201"
"Wolverhampton City Council","http://opendatacommunities.org/id/metropolitan-district-council/wolverhampton","703269","D-Tox","79.28","Room Hire","130267241","08/11/2019","Facilities Management","Culwell Street Depot","R2201"
"Wolverhampton City Council","http://opendatacommunities.org/id/metropolitan-district-council/wolverhampton","703269","D-Tox","44.92","Room Hire","130269220","01/11/2019","Licensing","Private Hire Vehicles","R2201"
"Wolverhampton City Council","http://opendatacommunities.org/id/metropolitan-district-council/wolverhampton","703269","D-Tox","81.92","Room Hire","130270717","27/11/2019","Facilities Management","Hickman Avenue Depot","R2201"
"Wolverhampton City Council","http://opendatacommunities.org/id/metropolitan-district-council/wolverhampton","703269","D-Tox","79.28","Room Hire","130267242","08/11/2019","Facilities Management","Hickman Avenue Depot","R2201"
"Wolverhampton City Council","http://opendatacommunities.org/id/metropolitan-district-council/wolverhampton","703269","D-Tox","81.92","Room Hire","130270714","27/11/2019","Facilities Management","Hickman Avenue Depot","R2201"
"Wolverhampton City Council","http://opendatacommunities.org/id/metropolitan-district-council/wolverhampton","703269","D-Tox","81.92","Room Hire","130270716","27/11/2019","Facilities Management","Culwell Street Depot","R2201"
"Wolverhampton City Council","http://opendatacommunities.org/id/metropolitan-district-council/wolverhampton","703269","D-Tox","79.28","Room Hire","130269222","01/11/2019","Licensing","Private Hire Vehicles","R2201"
"Wolverhampton City Council","http://opendatacommunities.org/id/metropolitan-district-council/wolverhampton","703275","Dudley M B C","250.00","Training Expenses","130270718","22/11/2019","Governance Services","Workforce Development","R1650"
"Wolverhampton City Council","http://opendatacommunities.org/id/metropolitan-district-council/wolverhampton","703289","Duncan Street Primary Care Centre","725.00","TPP - Public Health Contracts","190660320","13/11/2019","Healthy Life Expectancy","Healthy Lifestyles","R5060"
"Wolverhampton City Council","http://opendatacommunities.org/id/metropolitan-district-council/wolverhampton","703289","Duncan Street Primary Care Centre","39.50","TPP - Public Health Contracts","190660319","13/11/2019","Healthy Life Expectancy","Healthy Lifestyles","R5060"
"Wolverhampton City Council","http://opendatacommunities.org/id/metropolitan-district-council/wolverhampton","703301","DVLA Swansea","80.00","Services - Fees and Charges","190663561","20/11/2019","Governance Services","Mayoral Expenses","R4401"
"Wolverhampton City Council","http://opendatacommunities.org/id/metropolitan-district-council/wolverhampton","703303","DWP (Dept For Work & Pensions)","10.00","Insurance - General","190660345","13/11/2019","Audit Services","Legal Liability","R4962"
"Wolverhampton City Council","http://opendatacommunities.org/id/metropolitan-district-council/wolverhampton","703303","DWP (Dept For Work & Pensions)","665.00","Insurance - General","190664202","22/11/2019","Audit Services","Legal Liability","R4962"
"Wolverhampton City Council","http://opendatacommunities.org/id/metropolitan-district-council/wolverhampton","703303","DWP (Dept For Work & Pensions)","688.00","Insurance - General","190666927","29/11/2019","Audit Services","Legal Liability","R4962"
"Wolverhampton City Council","http://opendatacommunities.org/id/metropolitan-district-council/wolverhampton","703318","E A Derry","2,988.68","Grounds Maintenance - Non Contract","130270862","27/11/2019","Environmental Services","Ground Maintenance East","R2076"
"Wolverhampton City Council","http://opendatacommunities.org/id/metropolitan-district-council/wolverhampton","703318","E A Derry","195.00","Grounds Maintenance - Non Contract","130271411","15/11/2019","Environmental Services","Northicote Farm","R2076"
"Wolverhampton City Council","http://opendatacommunities.org/id/metropolitan-district-council/wolverhampton","703318","E A Derry","195.00","Grounds Maintenance - Non Contract","130272424","22/11/2019","Environmental Services","Northicote Farm","R2076"
"Wolverhampton City Council","http://opendatacommunities.org/id/metropolitan-district-council/wolverhampton","703334","E.On(Consumption Of Gas/Elec Units).","78.06","Electricity","190664198","22/11/2019","Estates and Valuations","Industrial Premises ; Loxdale Park","R2100"
"Wolverhampton City Council","http://opendatacommunities.org/id/metropolitan-district-council/wolverhampton","703334","E.On(Consumption Of Gas/Elec Units).","22.56","Electricity","190664197","22/11/2019","Estates and Valuations","Industrial Premises ; Landport Road","R2100"
"Wolverhampton City Council","http://opendatacommunities.org/id/metropolitan-district-council/wolverhampton","703334","E.On(Consumption Of Gas/Elec Units).","48.50","Electricity","190664199","22/11/2019","Estates and Valuations","Industrial Premises ; Loxdale Park","R2100"
"Wolverhampton City Council","http://opendatacommunities.org/id/metropolitan-district-council/wolverhampton","703339","Eagle Music (Jim Duncan)","600.00","Marketing \ Non-staff advertising","130269534","20/11/2019","Visitor Economy","VEC - Marketing Poster Boards","R4317"
"Wolverhampton City Council","http://opendatacommunities.org/id/metropolitan-district-council/wolverhampton","703339","Eagle Music (Jim Duncan)","100.00","Hire of Vehicles","130269534","20/11/2019","Visitor Economy","VEC - Marketing Poster Boards","R3200"
"Wolverhampton City Council","http://opendatacommunities.org/id/metropolitan-district-council/wolverhampton","703340","Eagle Supplies Limited","39.96","Equipment - Purchase","190667286","29/11/2019","Fleet Services","Fleet Management","R4000"
"Wolverhampton City Council","http://opendatacommunities.org/id/metropolitan-district-council/wolverhampton","703340","Eagle Supplies Limited","12.30","Equipment - Purchase","190659288","08/11/2019","Fleet Services","Fleet Management","R4000"
"Wolverhampton City Council","http://opendatacommunities.org/id/metropolitan-district-council/wolverhampton","703340","Eagle Supplies Limited","124.50","Equipment - Purchase","190663952","22/11/2019","Fleet Services","Fleet Management","R4000"
"Wolverhampton City Council","http://opendatacommunities.org/id/metropolitan-district-council/wolverhampton","703340","Eagle Supplies Limited","39.96","Equipment - Purchase","190667287","29/11/2019","Fleet Services","Fleet Management","R4000"
"Wolverhampton City Council","http://opendatacommunities.org/id/metropolitan-district-council/wolverhampton","703371","Eclipse Access Solutions Limited","195.00","Grants paid out to other organisations","190662483","20/11/2019","-","Disabled Facilities Grants","C5011"
"Wolverhampton City Council","http://opendatacommunities.org/id/metropolitan-district-council/wolverhampton","703371","Eclipse Access Solutions Limited","1,790.00","Grants paid out to other organisations","190666372","27/11/2019","-","Disabled Facilities Grants","C5011"
"Wolverhampton City Council","http://opendatacommunities.org/id/metropolitan-district-council/wolverhampton","703371","Eclipse Access Solutions Limited","3,165.00","Grants paid out to other organisations","190666368","27/11/2019","-","Disabled Facilities Grants","C5011"
"Wolverhampton City Council","http://opendatacommunities.org/id/metropolitan-district-council/wolverhampton","703371","Eclipse Access Solutions Limited","1,895.00","Grants paid out to other organisations","190664376","22/11/2019","-","Disabled Facilities Grants","C5011"
"Wolverhampton City Council","http://opendatacommunities.org/id/metropolitan-district-council/wolverhampton","703371","Eclipse Access Solutions Limited","1,895.00","Grants paid out to other organisations","190664376","22/11/2019","-","Disabled Facilities Grants","C5011"
"Wolverhampton City Council","http://opendatacommunities.org/id/metropolitan-district-council/wolverhampton","703371","Eclipse Access Solutions Limited","5,340.00","Grants paid out to other organisations","190664376","22/11/2019","-","Disabled Facilities Grants","C5011"
"Wolverhampton City Council","http://opendatacommunities.org/id/metropolitan-district-council/wolverhampton","703371","Eclipse Access Solutions Limited","5,340.00","Grants paid out to other organisations","190664376","22/11/2019","-","Disabled Facilities Grants","C5011"
"Wolverhampton City Council","http://opendatacommunities.org/id/metropolitan-district-council/wolverhampton","703374","Econ Engineering Limited","49.81","Equipment - Purchase","190663380","20/11/2019","Fleet Services","Fleet Management","R4000"
"Wolverhampton City Council","http://opendatacommunities.org/id/metropolitan-district-council/wolverhampton","703374","Econ Engineering Limited","61.84","Equipment - Purchase","190663380","20/11/2019","Fleet Services","Fleet Management","R4000"
"Wolverhampton City Council","http://opendatacommunities.org/id/metropolitan-district-council/wolverhampton","703374","Econ Engineering Limited","50.87","Equipment - Purchase","190663380","20/11/2019","Fleet Services","Fleet Management","R4000"
"Wolverhampton City Council","http://opendatacommunities.org/id/metropolitan-district-council/wolverhampton","703374","Econ Engineering Limited","150.00","Services - Professional Fees","190656832","01/11/2019","Fleet Services","Fleet Management","R4400"
"Wolverhampton City Council","http://opendatacommunities.org/id/metropolitan-district-council/wolverhampton","703374","Econ Engineering Limited","150.00","Services - Professional Fees","190656832","01/11/2019","Fleet Services","Fleet Management","R4400"
"Wolverhampton City Council","http://opendatacommunities.org/id/metropolitan-district-council/wolverhampton","703374","Econ Engineering Limited","150.00","Services - Professional Fees","190656832","01/11/2019","Fleet Services","Fleet Management","R4400"
"Wolverhampton City Council","http://opendatacommunities.org/id/metropolitan-district-council/wolverhampton","703374","Econ Engineering Limited","150.00","Services - Professional Fees","190656832","01/11/2019","Fleet Services","Fleet Management","R4400"
"Wolverhampton City Council","http://opendatacommunities.org/id/metropolitan-district-council/wolverhampton","703374","Econ Engineering Limited","150.00","Services - Professional Fees","190656832","01/11/2019","Fleet Services","Fleet Management","R4400"
"Wolverhampton City Council","http://opendatacommunities.org/id/metropolitan-district-council/wolverhampton","703374","Econ Engineering Limited","150.00","Services - Professional Fees","190656832","01/11/2019","Fleet Services","Fleet Management","R4400"
"Wolverhampton City Council","http://opendatacommunities.org/id/metropolitan-district-council/wolverhampton","703374","Econ Engineering Limited","150.00","Services - Professional Fees","190656832","01/11/2019","Fleet Services","Fleet Management","R4400"
"Wolverhampton City Council","http://opendatacommunities.org/id/metropolitan-district-council/wolverhampton","703374","Econ Engineering Limited","150.00","Services - Professional Fees","190656832","01/11/2019","Fleet Services","Fleet Management","R4400"
"Wolverhampton City Council","http://opendatacommunities.org/id/metropolitan-district-council/wolverhampton","703374","Econ Engineering Limited","150.00","Services - Professional Fees","190656832","01/11/2019","Fleet Services","Fleet Management","R4400"
"Wolverhampton City Council","http://opendatacommunities.org/id/metropolitan-district-council/wolverhampton","703374","Econ Engineering Limited","427.00","Services - Professional Fees","190656832","01/11/2019","Fleet Services","Fleet Management","R4400"
"Wolverhampton City Council","http://opendatacommunities.org/id/metropolitan-district-council/wolverhampton","703374","Econ Engineering Limited","291.60","Services - Professional Fees","190656832","01/11/2019","Fleet Services","Fleet Management","R4400"
"Wolverhampton City Council","http://opendatacommunities.org/id/metropolitan-district-council/wolverhampton","703374","Econ Engineering Limited","248.31","Services - Professional Fees","190656832","01/11/2019","Fleet Services","Fleet Management","R4400"
"Wolverhampton City Council","http://opendatacommunities.org/id/metropolitan-district-council/wolverhampton","703383","Edexcel  (Was Edexcel Limited)","16.50","Exam Expenses (Non-Employee)","130272230","20/11/2019","Adult Education","Discretionary Fund","R4630"
"Wolverhampton City Council","http://opendatacommunities.org/id/metropolitan-district-council/wolverhampton","703383","Edexcel  (Was Edexcel Limited)","57.75","Exam Expenses (Non-Employee)","130272233","20/11/2019","Adult Education","Discretionary Fund","R4630"
"Wolverhampton City Council","http://opendatacommunities.org/id/metropolitan-district-council/wolverhampton","703383","Edexcel  (Was Edexcel Limited)","8.49","Exam Expenses (Non-Employee)","130272226","20/11/2019","Adult Education","Discretionary Fund","R4630"
"Wolverhampton City Council","http://opendatacommunities.org/id/metropolitan-district-council/wolverhampton","703383","Edexcel  (Was Edexcel Limited)","82.00","Exam Expenses (Non-Employee)","130272219","22/11/2019","Adult Education","Discretionary Fund","R4630"
"Wolverhampton City Council","http://opendatacommunities.org/id/metropolitan-district-council/wolverhampton","703383","Edexcel  (Was Edexcel Limited)","816.75","Exam Expenses (Non-Employee)","130272051","22/11/2019","Adult Education","Discretionary Fund","R4630"
"Wolverhampton City Council","http://opendatacommunities.org/id/metropolitan-district-council/wolverhampton","703383","Edexcel  (Was Edexcel Limited)","280.50","Exam Expenses (Non-Employee)","130272426","27/11/2019","Adult Education","Discretionary Fund","R4630"
"Wolverhampton City Council","http://opendatacommunities.org/id/metropolitan-district-council/wolverhampton","703383","Edexcel  (Was Edexcel Limited)","17.00","Exam Expenses (Non-Employee)","130272056","20/11/2019","Adult Education","Discretionary Fund","R4630"
"Wolverhampton City Council","http://opendatacommunities.org/id/metropolitan-district-council/wolverhampton","703383","Edexcel  (Was Edexcel Limited)","41.00","Exam Expenses (Non-Employee)","130272222","20/11/2019","Adult Education","Discretionary Fund","R4630"
"Wolverhampton City Council","http://opendatacommunities.org/id/metropolitan-district-council/wolverhampton","703383","Edexcel  (Was Edexcel Limited)","25.90","Exam Expenses (Non-Employee)","130272224","20/11/2019","Adult Education","Discretionary Fund","R4630"
"Wolverhampton City Council","http://opendatacommunities.org/id/metropolitan-district-council/wolverhampton","703383","Edexcel  (Was Edexcel Limited)","893.55","Exam Expenses (Non-Employee)","130272220","22/11/2019","Adult Education","Discretionary Fund","R4630"
"Wolverhampton City Council","http://opendatacommunities.org/id/metropolitan-district-council/wolverhampton","703383","Edexcel  (Was Edexcel Limited)","1,130.25","Exam Expenses (Non-Employee)","130272052","27/11/2019","Adult Education","Discretionary Fund","R4630"
"Wolverhampton City Council","http://opendatacommunities.org/id/metropolitan-district-council/wolverhampton","703383","Edexcel  (Was Edexcel Limited)","41.00","Exam Expenses (Non-Employee)","130272218","20/11/2019","Adult Education","Discretionary Fund","R4630"
"Wolverhampton City Council","http://opendatacommunities.org/id/metropolitan-district-council/wolverhampton","703383","Edexcel  (Was Edexcel Limited)","144.42","Exam Expenses (Non-Employee)","130272054","20/11/2019","Adult Education","Discretionary Fund","R4630"
"Wolverhampton City Council","http://opendatacommunities.org/id/metropolitan-district-council/wolverhampton","703383","Edexcel  (Was Edexcel Limited)","356.79","Exam Expenses (Non-Employee)","130272225","20/11/2019","Adult Education","Discretionary Fund","R4630"
"Wolverhampton City Council","http://opendatacommunities.org/id/metropolitan-district-council/wolverhampton","703383","Edexcel  (Was Edexcel Limited)","169.93","Exam Expenses (Non-Employee)","130272055","20/11/2019","Adult Education","Discretionary Fund","R4630"
"Wolverhampton City Council","http://opendatacommunities.org/id/metropolitan-district-council/wolverhampton","703383","Edexcel  (Was Edexcel Limited)","231.00","Exam Expenses (Non-Employee)","130272057","27/11/2019","Adult Education","Discretionary Fund","R4630"
"Wolverhampton City Council","http://opendatacommunities.org/id/metropolitan-district-council/wolverhampton","703383","Edexcel  (Was Edexcel Limited)","132.00","Exam Expenses (Non-Employee)","130272425","27/11/2019","Adult Education","Discretionary Fund","R4630"
"Wolverhampton City Council","http://opendatacommunities.org/id/metropolitan-district-council/wolverhampton","703383","Edexcel  (Was Edexcel Limited)","90.75","Exam Expenses (Non-Employee)","130272223","22/11/2019","Adult Education","Discretionary Fund","R4630"
"Wolverhampton City Council","http://opendatacommunities.org/id/metropolitan-district-council/wolverhampton","703383","Edexcel  (Was Edexcel Limited)","272.25","Exam Expenses (Non-Employee)","130272427","22/11/2019","Adult Education","Discretionary Fund","R4630"
"Wolverhampton City Council","http://opendatacommunities.org/id/metropolitan-district-council/wolverhampton","703383","Edexcel  (Was Edexcel Limited)","8.49","Exam Expenses (Non-Employee)","130272229","20/11/2019","Adult Education","Discretionary Fund","R4630"
"Wolverhampton City Council","http://opendatacommunities.org/id/metropolitan-district-council/wolverhampton","703383","Edexcel  (Was Edexcel Limited)","42.00","Exam Expenses (Non-Employee)","130272227","20/11/2019","Adult Education","Discretionary Fund","R4630"
"Wolverhampton City Council","http://opendatacommunities.org/id/metropolitan-district-council/wolverhampton","703383","Edexcel  (Was Edexcel Limited)","25.90","Exam Expenses (Non-Employee)","130272221","20/11/2019","Adult Education","Discretionary Fund","R4630"
"Wolverhampton City Council","http://opendatacommunities.org/id/metropolitan-district-council/wolverhampton","703383","Edexcel  (Was Edexcel Limited)","849.75","Exam Expenses (Non-Employee)","130272428","27/11/2019","Adult Education","Discretionary Fund","R4630"
"Wolverhampton City Council","http://opendatacommunities.org/id/metropolitan-district-council/wolverhampton","703383","Edexcel  (Was Edexcel Limited)","67.98","Exam Expenses (Non-Employee)","130272228","22/11/2019","Adult Education","Discretionary Fund","R4630"
"Wolverhampton City Council","http://opendatacommunities.org/id/metropolitan-district-council/wolverhampton","703383","Edexcel  (Was Edexcel Limited)","90.76","Exam Expenses (Non-Employee)","130272053","22/11/2019","Adult Education","Discretionary Fund","R4630"
"Wolverhampton City Council","http://opendatacommunities.org/id/metropolitan-district-council/wolverhampton","703383","Edexcel  (Was Edexcel Limited)","16.50","Exam Expenses (Non-Employee)","130272231","20/11/2019","Adult Education","Discretionary Fund","R4630"
"Wolverhampton City Council","http://opendatacommunities.org/id/metropolitan-district-council/wolverhampton","703383","Edexcel  (Was Edexcel Limited)","16.50","Exam Expenses (Non-Employee)","130272232","20/11/2019","Adult Education","Discretionary Fund","R4630"
"Wolverhampton City Council","http://opendatacommunities.org/id/metropolitan-district-council/wolverhampton","703384","Edf Energy Cust Field Services","432.00","Electricity","190664158","22/11/2019","Corporate Asset Management","Central Utilities to Recharge","R2100"
"Wolverhampton City Council","http://opendatacommunities.org/id/metropolitan-district-council/wolverhampton","703395","Edmundson Electrical Limited","57.62","Materials","130269382","20/11/2019","Maintenance Programme","Civic Centre Repairs & Maintenance","R4007"
"Wolverhampton City Council","http://opendatacommunities.org/id/metropolitan-district-council/wolverhampton","703395","Edmundson Electrical Limited","266.77","Materials","130271856","27/11/2019","Maintenance Programme","Civic Centre Repairs & Maintenance","R4007"
"Wolverhampton City Council","http://opendatacommunities.org/id/metropolitan-district-council/wolverhampton","703395","Edmundson Electrical Limited","154.88","Materials","130269535","06/11/2019","Maintenance Programme","Civic Centre Repairs & Maintenance","R4007"
"Wolverhampton City Council","http://opendatacommunities.org/id/metropolitan-district-council/wolverhampton","703395","Edmundson Electrical Limited","14.69","Equipment - Purchase","190656800","01/11/2019","Fleet Services","Fleet Management","R4000"
"Wolverhampton City Council","http://opendatacommunities.org/id/metropolitan-district-council/wolverhampton","703395","Edmundson Electrical Limited","7.48","Equipment - Purchase","190656800","01/11/2019","Fleet Services","Fleet Management","R4000"
"Wolverhampton City Council","http://opendatacommunities.org/id/metropolitan-district-council/wolverhampton","703395","Edmundson Electrical Limited","173.72","Materials","130270446","20/11/2019","Maintenance Programme","Civic Centre Repairs & Maintenance","R4007"
"Wolverhampton City Council","http://opendatacommunities.org/id/metropolitan-district-council/wolverhampton","703395","Edmundson Electrical Limited","30.12","Materials","130269811","20/11/2019","Maintenance Programme","Civic Centre Repairs & Maintenance","R4007"
"Wolverhampton City Council","http://opendatacommunities.org/id/metropolitan-district-council/wolverhampton","703395","Edmundson Electrical Limited","346.46","Materials","130269536","06/11/2019","Maintenance Programme","Civic Centre Repairs & Maintenance","R4007"
"Wolverhampton City Council","http://opendatacommunities.org/id/metropolitan-district-council/wolverhampton","703395","Edmundson Electrical Limited","1,913.50","Materials","130268693","06/11/2019","Street Lighting","Street Lighting Maintenance","R4007"
"Wolverhampton City Council","http://opendatacommunities.org/id/metropolitan-district-council/wolverhampton","703395","Edmundson Electrical Limited","46.73","Materials","130270444","20/11/2019","Maintenance Programme","Civic Centre Repairs & Maintenance","R4007"
